Workbook

Sheet Menu_principal
M31: Desenvolvido por Heloiza C. Holgado/PROPPI

Sheet Menu_NIT

Sheet demanda_recebida
B12: Objetivo: Indicar a demanda do Núcleo de Inovação Tecnológica
B15: Quadro – Demandas formais recebidas pelo NIT - por área de conhecimento | G15: Quadro - Demandas formais recebidas pelo NIT - por subcategorias de proteção da propriedade intelectual*
B17: Áreas de Conhecimento | C17: Ano de recebimento | G17: Subcategorias | H17: Ano de recebimento
C18: 2020 | D18: 2021 | E18: 2022* | H18: 2020 | I18: 2021 | J18: 2022**
B19: Ciências Exatas e da Terra | C19: 3 | D19: 4 | E19: 1 | G19: Direito de autor | H19: 4 | I19: 7
B20: Ciências Biológicas | C20: 1 | D20: 2 | G20: Direitos conexos
B21: Engenharias | C21: 1 | D21: 2 | G21: Programa de computador | H21: 3 | I21: 3 | J21: 1
B22: Ciências da Saúde | C22: 1 | D22: 1 | E22: 1 | G22: Marca | H22: 2 | J22: 1
B23: Ciências Agrárias | C23: 1 | D23: 4 | G23: Patente | H23: 4 | I23: 4
B24: Ciências Sociais Aplicadas | C24: 1 | D24: 1 | G24: Desenho industrial
B25: Ciências Humanas | C25: 3 | D25: 1 | G25: Indicação geográfica
B26: Linguística, Letras e Artes | C26: 2 | D26: 1 | G26: Segredo industrial e Repressão à concorrência desleal
B27: Total | C27: 13 | D27: 16 | E27: =SUM(E19:E22) -> 2 | G27: Topografia de circuito integrado
B28: *dados referem-se ao 1º semestre de 2022 | G28: Cultivar | I28: 1
G29: Conhecimento Tradicional | I29: 1
G30: Total | H30: 13 | I30: 16 | J30: =SUM(J19:J29) -> 2
G31: *Incluindo pedidos de esclarecimentos
G32: **Dados referem-se ao 1º semestre de 2022
B33: Fonte:NIT julho/2022

Sheet demanda patente
B11: Objetivo: Informar a demanda qualificada por patentes*
B14: Quadro - Registra as etapas das solicitações recebidas até o primeiro de 2022.
B15: Áreas de Conhecimento | C15: Pareceres emitidos em 2020 | D15: Pareceres emitidos em 2021 | E15: Pareceres emitidos em 2022 | F15: Etapa de adequações às formalidades do INPI | G15: Peticionamento INPI | H15: Deferimento INPI
B16: Ciências Exatas e da Terra | C16: 3 | D16: 2 | E16: 1 | F16: 4 | G16: 1**
B17: Ciências Biológicas
B18: Engenharias | C18: 1 | D18: 2 | F18: 3
B19: Ciências da Saúde
B20: Ciências Agrárias | D20: 2 | F20: 1 | G20: 1**
B21: Ciências Sociais Aplicadas
B22: Ciências Humanas
B23: Linguística, Letras e Artes
B24: Total | C24: 4 | D24: 6 | E24: =E16 -> 1 | F24: 8 | G24: 2
B25: *Demanda qualificada: é a que atende aos critérios básicos de novidade, atividade inventiva e aplicação industrial, que estão na etapa de adequações às formalidades do INPI
B27: ** Peticionamento realizado em parceria com outras ICTs
B30: Fonte: NIT julho/2022

Sheet Premio Inova
C10: PRÊMIO INOVA UEMS 2022 SERÁ REALIZADO NO SEGUNDO SEMESTRE DE 2022
B12: Objetivo: Informar a quantidade de inscritos e premidados no Prêmio Inova UEMS
P13: Quadro – Quadro síntese (quantidades totais) inscritos e premiados no Prêmio Inova UEMS
B14: Quadro – Dethalhamento de inscritos no Prêmio Inova UEMS, por área de conhecimento
B15: Área de conhecimento | C15: Projetos inscritos | P15: Área de conhecimento | Q15: Inscritos | S15: Premiados | U15: Menção Honrosa
C16: Direito Autoral | G16: Propriedade Industrial | K16: Proteção Sui Generis | Q16: 2020 | R16: 2021 | S16: 2020 | T16: 2021 | U16: 2020 | V16: 2021
C17: Modalidade Faisca | E17: Modalidade Ascenção | G17: Modalidade Faisca | I17: Modalidade Ascenção | K17: Modalidade Faisca | M17: Modalidade Ascenção | P17: Ciências Exatas e da Terra | Q17: 1 | R17: 1 | U17: 1
C18: 2020 | D18: 2021 | E18: 2020 | F18: 2021 | G18: 2020 | H18: 2021 | I18: 2020 | J18: 2021 | K18: 2020 | L18: 2021 | M18: 2020 | N18: 2021 | P18: Ciências Biológicas | R18: 1
B19: Ciências Exatas e da Terra | D19: 1 | E19: 1 | P19: Engenharias | Q19: 1 | R19: 6 | S19: 1 | T19: 4
B20: Ciências Biológicas | L20: 1 | P20: Ciências da Saúde | Q20: 2 | R20: 1 | S20: 2 | V20: 1
B21: Engenharias | F21: 1 | H21: 3 | I21: 1 | J21: 2 | P21: Ciências Agrárias | Q21: 6 | R21: 16 | S21: 4 | T21: 6 | U21: 2 | V21: 5
B22: Ciências da Saúde | E22: 2 | F22: 1 | P22: Ciências Sociais Aplicadas | R22: 2
B23: Ciências Agrárias | D23: 3 | E23: 3 | F23: 3 | G23: 3 | H23: 8 | L23: 2 | P23: Ciências Humanas | R23: 1
B24: Ciências Sociais Aplicadas | D24: 1 | H24: 1 | P24: Linguística, Letras e Artes | R24: 1 | T24: 1
B25: Ciências Humanas | D25: 1 | P25: Interdisciplinar | Q25: 7 | R25: 4 | S25: 6 | T25: 3 | U25: 1
B26: Linguística, Letras e Artes | D26: 1 | P26: Total geral | Q26: 17 | R26: 33 | S26: 13 | T26: 14 | U26: 4 | V26: 6
B27: Interdisciplinar | C27: 3 | D27: 1 | F27: 2 | I27: 4 | L27: 1
B30: Quadro – Dethalhamento dos premiados no Prêmio Inova UEMS, por área de conhecimento
B31: Área de conhecimento | C31: Projetos inscritos
C32: Direito Autoral | G32: Propriedade Industrial | K32: Proteção Sui Generis
C33: Modalidade Faisca | E33: Modalidade Ascenção | G33: Modalidade Faisca | I33: Modalidade Ascenção | K33: Modalidade Faisca | M33: Modalidade Ascenção
C34: 2020 | D34: 2021 | E34: 2020 | F34: 2021 | G34: 2020 | H34: 2021 | I34: 2020 | J34: 2021 | K34: 2020 | L34: 2021 | M34: 2020 | N34: 2021
B35: Ciências Exatas e da Terra | D35: 1
B36: Ciências Biológicas
B37: Engenharias | H37: 2 | I37: 1 | J37: 2
B38: Ciências da Saúde | E38: 2
B39: Ciências Agrárias | D39: 2 | E39: 2 | F39: 1 | G39: 2 | H39: 1 | L39: 2
B40: Ciências Sociais Aplicadas
B41: Ciências Humanas
B42: Linguística, Letras e Artes | F42: 1
B43: Interdisciplinar | C43: 2 | D43: 1 | F43: 1 | I43: 4 | L43: 1

Sheet ações_NIT
B9: Objetivo: Indicar o quantitativo de ações desenvolvidas pelo Núcleo de Inovação Tecnológica da UEMS
B12: Quadro - Quantidade de ações promovidas pelo NIT
B13: Áreas de Conhecimento | C13: Ano
C14: 2020 | D14: 2021 | E14: 2022*
B15: Encontros/ Eventos | C15: 62 | D15: 71 | E15: 12
B16: Workshop/Oficina | C16: 7 | D16: 5 | E16: 10**
B17: Palestras | C17: 4 | D17: 5 | E17: 2
B18: Prospecção de parcerias | C18: 4 | D18: 8 | E18: 1
B19: Total | C19: 77 | D19: 89 | E19: 25
B20: *dados referem-se ao 1º semestre de 2022
B21: ** Diálogos de Inovação e Internacionalização realizados até 30/07
B23: Fonte: NIT julho/2022

Sheet Menu_IC

Sheet Demanda_IC
B12: Objetivo: Informar a demanda e implantações de bolsas de Iniciação Científica
B14: Síntese: | C14: Demanda por bolsas: 369
C15: Bolsas disponíveis: 363
C16: Bolsas implantadas: 354 (9 alunos não optaram pela bolsa)
C17: Bolsas canceladas após a implantação: 4
C18: Projetos de IC com bolsa em execução em dez/21: 350
B21: Quadro – Demandas e as concessões de bolsas de Iniciação Científica por modalidade
B22: Áreas de Conhecimento | C22: 2021/22 | F22: 2021/22 | I22: 2021/22
C23: PIBIC CNPq/UEMS | F23: PIBITI CNPq | I23: PIBIC AAF
C24: Inscritos | D24: Demanda qualificada* | E24: Bolsas implantadas | F24: Inscritos | G24: Demanda qualificada* | H24: Bolsas implantadas | I24: Inscritos | J24: Demanda qualificada* | K24: Bolsas implantadas
B25: Ciências Exatas e da Terra | C25: 34 | D25: 30 | E25: 28* | F25: - | G25: 0 | H25: 0 | I25: 0 | J25: 0 | K25: 0
B26: Ciências Biológicas | C26: 10 | D26: 10 | E26: 10 | F26: - | G26: 0 | H26: 0 | I26: 0 | J26: 0 | K26: 0
B27: Engenharias | C27: 16 | D27: 16 | E27: 16 | F27: 2 | G27: 2 | H27: 2 | I27: 0 | J27: 0 | K27: 0
B28: Ciências da Saúde | C28: 60 | D28: 59 | E28: 57* | F28: 1 | G28: 1 | H28: 1 | I28: 2 | J28: 2 | K28: 2
B29: Ciências Agrárias | C29: 117 | D29: 115 | E29: 111 | F29: 6 | G29: 6 | H29: 6 | I29: 5 | J29: 5 | K29: 5
B30: Ciências Sociais Aplicadas | C30: 51 | D30: 50 | E30: 50* | F30: - | G30: 0 | H30: 0 | I30: 6 | J30: 6 | K30: 6
B31: Ciências Humanas | C31: 39 | D31: 38 | E31: 31 * | F31: - | G31: 0 | H31: 0 | I31: 5 | J31: 5 | K31: 5
B32: Linguística, Letras e Artes | C32: 24 | D32: 24 | E32: 24 | F32: - | G32: 0 | H32: 0 | I32: 0 | J32: 0 | K32: 0
B33: Total | C33: 351 | D33: 342 | E33: 327 | F33: 9 | G33: 9 | H33: 9 | I33: 18 | J33: 18 | K33: 18
B34: *Demanda qualificada se refere a projetos aprovados, aptos a concorrem às bolsas
B35: OBS: Período compreendido da bolsa: 1 de agosto de 2021 a 31 julho de 2022
B38: Fonte: Divisão de Pesquisa, dezembro 2021

Sheet Alunos_em_IC
B12: Objetivo: Aferir o envolvimento do corpo discente da UEMS em projetos de IC.
B14: Fórmula de Cálculo: IALIC = NALIC/NALGx100
B16: NALIC = n° de alunos com projetos de IC (alunos bolsistas PIBIC CNPq/UEMS, PIBITI CNPq, PIBIC AAF e IC sem bolsa)
B17: NALG = nº total de alunos de graduação matriculados na Unidade Universitária
B20: Quadro - Percentual de envolvimento dos alunos da graduação em projetos de IC*
B21: Unidades Universitárias | C21: 2016 (%) | D21: 2017 (%) | E21: 2018(%) | F21: 2019(%) | G21: 2020 | H21: 2021 | I21: 2022
B22: Aquidauana | C22: 10.66878981 | D22: 9.335443038 | E22: 10.39755352 | F22: 11.87800963 | G22: 0.1092150171 | H22: 0.1005 | I22: 0.128
B23: Amambai | C23: 7.462686567 | D23: 1.877934272 | E23: 5.092592593 | F23: 3.773584906 | G23: 0.02884615385 | H23: 0.022 | I23: 0.0275
B24: Campo Grande | C24: 4.429133858 | D24: 5.717054264 | E24: 5.338983051 | F24: 5.12 | G24: 0.05589123867 | H24: 0.0691 | I24: 0.0607
B25: Cassilândia | C25: 13.27913279 | D25: 7.960199005 | E25: 7.37913486 | F25: 11.19791667 | G25: 0.09135802469 | H25: 0.1135 | I25: 0.1187
B26: Coxim | C26: 0.6756756757 | D26: 0.6024096386 | E26: - | F26: 2.419354839 | G26: 0.01351351351 | H26: 0.0192 | I26: -
B27: Dourados | C27: 7.028571429 | D27: 5.485017776 | E27: 5.338078292 | F27: 5.951770139 | G27: 0.0650702759 | H27: 0.0684 | I27: 0.0645
B28: Glória de Dourados | C28: 0.9259259259 | D28: 2.083333333 | E28: 1.986754967 | F28: 2.272727273 | G28: 2.56 | H28: - | I28: -
B29: Ivinhema | C29: 3.448275862 | D29: 2.586206897 | E29: 2.727272727 | F29: 2.43902439 | G29: 0.08974358974 | H29: 0.0462 | I29: 0.0308
B30: Jardim | C30: 3.082191781 | D30: 2.333333333 | E30: 2.875399361 | F30: 2.287581699 | G30: 0.01454545455 | H30: 0.0169 | I30: 0.0084
B31: Maracaju | C31: - | D31: - | E31: - | F31: - | G31: - | H31: - | I31: -
B32: Mundo Novo | C32: 8.542713568 | D32: 7.798165138 | E32: 9.663865546 | F32: 11.33004926 | G32: 0.1182795699 | H32: 0.1257 | I32: 0.0838
B33: Naviraí | C33: 5.689277899 | D33: 5.520169851 | E33: 6.404958678 | F33: 6.626506024 | G33: 0.09375 | H33: 0.0845 | I33: 0.0704
B34: Nova Andradina | C34: 1.93236715 | D34: 0.9950248756 | E34: 2.475247525 | F34: 2.958579882 | G34: 0.0323 | H34: - | I34: 0.0105
B35: Paranaíba | C35: 3.863298663 | D35: 3.308270677 | E35: 3.328290469 | F35: 7.165109034 | G35: 0.06891025641 | H35: 0.0723 | I35: 0.0807
B36: Ponta Porã | C36: 1.986754967 | D36: 2.691511387 | E36: 2.237136465 | F36: 1.372997712 | G36: 0.002597402597 | H36: - | I36: 0.018
B37: Educação a Distancia** | I37: 0.0267
B38: Total | C38: 73.01479595 | D38: 58.29407348 | E38: 65.24526805 | F38: 76.79321146 | G38: 79.29 | H38: 73.83 | I38: 72.87
B39: *os dados que servem de base para os cálculos são referentes ao primeiro semestre de cada ano, quando as bolsas são implantadas.
B40: **O cálculo dos alunos EAD foram feitos com base nos alunos de Bela Vista (75), o total geral de alunos na EAD é de 823
B42: Fonte: Divisão de Pesquisa, julho 2022

Sheet Bolsas_IC
B11: Objetivo: Informar o número de alunos da graduação bolsistas (PIBIC CNPq/UEMS, PIBITI CNPq e PIBIC AAF)
B14: Quadro – Bolsas de IC disponibilizadas aos alunos de graduação - por Unidade Universitária | I14: Quadro - Quantitativo de bolsas de IC disponibilizadas aos alunos de graduação - por Curso
B15: Unidade Universitária | C15: ago/2020 a jul/21 | E15: ago/2021 a jul/22 | I15: Unidade Universitária | J15: Curso/Graduação | K15: ago/2021 a jul/22
C16: Aprovadas | D16: Canceladas | E16: Aprovadas | F16: Canceladas | K16: Aprovadas | L16: Canceladas
B17: Aquidauana | C17: 51 | D17: 2 | E17: 68 | F17: 1 | I17: AMAMBAI | J17: Ciências Sociais | K17: - | L17: -
B18: Amambai | C18: 4 | D18: 1 | E18: 3 | F18: - | J18: História | K18: 3 | L18: -
B19: Campo Grande | C19: 56 | D19: 6 | E19: 60 | F19: - | I19: AQUIDAUANA | J19: Agronomia | K19: 20 | L19: -
B20: Cassilândia | C20: 36 | D20: - | E20: 40 | F20: - | J20: Engenharia Florestal | K20: 16
B21: Coxim | C21: 1 | D21: - | E21: - | F21: - | J21: Zootecnia | K21: 32 | L21: 1
B22: Dourados | C22: 97 | D22: 5 | E22: 97 | F22: - | I22: CAMPO GRANDE | J22: Artes Cênicas | K22: 9 | L22: -
B23: Glória de Dourados | C23: - | D23: - | E23: - | F23: - | J23: Geografia | K23: 16 | L23: -
B24: Ivinhema | C24: 2 | D24: - | E24: 2 | F24: - | J24: Geografia Licenciatura | K24: - | L24: -
B25: Jardim | C25: 2 | D25: - | E25: - | F25: - | J25: Letras Bacharel | K25: - | L25: -
B26: Maracaju | C26: - | D26: - | E26: - | F26: - | J26: Letras Port./Inglês | K26: - | L26: -
B27: Mundo Novo | C27: 19 | D27: 2 | E27: 14 | F27: - | J27: Letras Port./Esp. | K27: 2 | L27: -
B28: Naviraí | C28: 32 | D28: 3 | E28: 30 | F28: - | J28: Medicina | K28: 35 | L28: -
B29: Nova Andradina | C29: - | D29: - | E29: 1 | F29: - | J29: Pedagogia | K29: - | L29: -
B30: Paranaíba | C30: 35 | D30: 4 | E30: 40 | F30: 3 | J30: Turismo | K30: - | L30: -
B31: Ponta Porã | C31: - | D31: - | E31: 6 | F31: - | I31: CASSILÂNDIA | J31: Agronomia | K31: 40 | L31: -
B32: Educação a distância | C32: - | D32: - | E32: 2 | F32: - | J32: Letras | K32: - | L32: -
B33: Total | C33: 335 | D33: 23 | E33: 363 | F33: 4 | J33: Matemática | K33: - | L33: -
I34: COXIM | J34: Ciências Biológicas | K34: 0 | L34: -
J35: Gestão Ambiental | K35: - | L35: -
B36: Quadro – Bolsas de IC disponibilizadas aos alunos de graduação - por área do conhecimento | I36: DOURADOS | J36: Ciências da Computação | K36: 2 | L36: -
J37: Ciências Biológicas Bacharelado | K37: 1 | L37: -
B38: Áreas de Conhecimento | C38: ago/2020 a jul//2021 | E38: ago/2021 a jul/22 | J38: Ciências Biológicas Licenciatura | K38: 2 | L38: -
C39: Aprovadas | D39: Canceladas | E39: Aprovadas | F39: Canceladas | J39: Direito | K39: 9 | L39: -
B40: Ciências Exatas e da Terra | C40: 43 | D40: 4 | E40: 31 | F40: - | J40: Enfermagem | K40: 29 | L40: -
B41: Ciências Biológicas | C41: 22 | D41: 1 | E41: 10 | F41: - | J41: Engenharia Ambiental e Sanitária | K41: 11 | L41: -
B42: Engenharias | C42: 15 | D42: 1 | E42: 18 | F42: - | J42: Engenharia Física | K42: 8 | L42: -
B43: Ciências da Saúde | C43: 36 | D43: - | E43: 60 | F43: - | J43: Física | K43: 2 | L43: -
B44: Ciências Agrárias | C44: 101 | D44: 3 | E44: 122 | F44: 1 | J44: Letras Port./Inglês | K44: 7 | L44: -
B45: Ciências Sociais Aplicadas | C45: 42 | D45: 6 | E45: 59 | F45: 3 | J45: Letras Port./ Espanhol | K45: 7 | L45: -
B46: Ciências Humanas | C46: 52 | D46: 4 | E46: 39 | F46: - | J46: Matemática | K46: - | L46: -
B47: Linguística, Letras e Artes | C47: 24 | D47: 4 | E47: 24 | F47: - | J47: Pedagogia | K47: 7 | L47: -
B48: Total | C48: 335 | D48: 23 | E48: 363 | F48: 4 | J48: Química Licenciatura | K48: - | L48: -
J49: Química Industrial | K49: 6 | L49: -
J50: Sistema de Informação | K50: 2 | L50: -
B51: Fonte: Divisão de Pesquisa, dezembro 2021 | J51: Turismo | K51: 4 | L51: -
I52: GLÓRIA DE DOURADOS | J52: Produção Sucroalcooleira | K52: - | L52: -
J53: Tecnologia em Agroecologia | K53: - | L53: -
I54: IVINHEMA | J54: Ciências Biológicas Bacharelado | K54: - | L54: -
J55: Ciências Biológicas Licenciatura | K55: 2 | L55: -
I56: JARDIM | J56: Geografia Licenciatura | K56: - | L56: -
J57: Letras Port./Inglês | K57: - | L57: -
I58: MARACAJU | J58: Administração | K58: - | L58: -
J59: Pedagogia | K59: - | L59: -
I60: MUNDO NOVO | J60: Ciências Biológicas Licenciatura | K60: 10 | L60: -
J61: Tecnologia Gestão Ambiental | K61: 4 | L61: -
I62: NAVIRAÍ | J62: Química | K62: 9 | L62: -
J63: Engenharia De Alimentos | K63: 13 | L63: -
J64: Direito | K64: 8 | L64: -
I65: NOVA ANDRADINA | J65: Matemática | K65: 1 | L65: -
J66: Computação | K66: - | L66: -
I67: PARANAÍBA | J67: Ciências Sociais | K67: 6 | L67: -
J68: Ciências Sociais Licenciatura | K68: - | L68: -
J69: Direito | K69: 33 | L69: 3
J70: Pedagogia | K70: 1 | L70: -
I71: PONTA PORÃ | J71: Administração de Empresas | K71: - | L71: -
J72: Ciências Contábeis | K72: 1 | L72: -
J73: Ciências Econômica | K73: 5 | L73: -
I74: TOTAL | K74: 363 | L74: 4
I76: Fonte: Divisão de Pesquisa, dezembro 2021

Sheet IC_sem_bolsa
B11: Objetivo: Informar o número de alunos na graduação envolvidos com projetos de IC sem bolsa
B15: Quadro - Quantitativo de alunos de graduação que participam da Modalidade IC sem bolsa - por Unidade Universitária | H15: Quadro - Quantitativo de alunos que participam da Modalidade IC sem bolsa - por área de conhecimento
B17: Unidades Universitárias | C17: 2022* | H17: Áreas de conhecimento | I17: 2022*
C18: Execução | D18: Cancelados | E18: Finalizados | I18: Execução | J18: Cancelados | K18: Finalizados
B19: Aquidauana | C19: 2 | D19: 0 | E19: 1 | H19: Ciências Exatas e da Terra | I19: 4 | J19: 1 | K19: 4
B20: Amambai | C20: 1 | D20: 0 | E20: 1 | H20: Ciências Biológicas | I20: 3 | J20: 1 | K20: 0
B21: Campo Grande | C21: 10 | D21: 1 | E21: 5 | H21: Engenharias | I21: 1 | J21: 0 | K21: 0
B22: Cassilândia | C22: 1 | D22: 1 | E22: 2 | H22: Ciências da Saúde | I22: 0 | J22: 0 | K22: 0
B23: Coxim | C23: 0 | D23: 0 | E23: 0 | H23: Ciências Agrárias | I23: 2 | J23: 1 | K23: 3
B24: Dourados | C24: 5 | D24: 1 | E24: 5 | H24: Ciências Sociais Aplicadas | I24: 12 | J24: 2 | K24: 0
B25: Glória de Dourados | C25: 0 | D25: 0 | E25: 0 | H25: Ciências Humanas | I25: 4 | J25: 1 | K25: 7
B26: Ivinhema | C26: 0 | D26: 0 | E26: 0 | H26: Linguística, Letras e Artes | I26: 5 | J26: 0 | K26: 0
B27: Jardim | C27: 1 | D27: 0 | E27: 0 | H27: Total | I27: =SUM(I19:I26) -> 31 | J27: =SUM(J19:J26) -> 6 | K27: =SUM(K19:K26) -> 14
B28: Maracaju | C28: 0 | D28: 0 | E28: 0 | H28: *Dados referentes ao 1º semestre de 2022
B29: Mundo Novo | C29: 1 | D29: 1 | E29: 0
B30: Naviraí | C30: 2 | D30: 0 | E30: 0
B31: Nova Andradina | C31: 0 | D31: 0 | E31: 0 | H31: Fonte: Divisão de Pesquisa, julho 2021
B32: Paranaíba | C32: 8 | D32: 2 | E32: 0
B33: Ponta Porã | C33: 0 | D33: 0 | E33: 0
B34: Total | C34: =SUM(C19:C33) -> 31 | D34: =SUM(D19:D33) -> 6 | E34: =SUM(E19:E33) -> 14
B35: *Dados referentes ao 1º semestre de 2022

Sheet Historico_IC
B11: Objetivo: Apresentar a série histórica envolvendo a Iniciação Científica
B13: Quadro - Histórico de bolsas de IC disponibilizadas aos alunos de graduação - por área de conhecimento
B15: Áreas de Conhecimento | C15: 2017/18 | D15: 2018/19 | E15: 2019/20 | F15: 2020/21 | G15: 2021/22
B16: Ciências Exatas e da Terra | C16: 43 | D16: 48 | E16: 43 | F16: 43 | G16: 31
B17: Ciências Biológicas | C17: 15 | D17: 18 | E17: 19 | F17: 22 | G17: 10
B18: Engenharias | C18: 26 | D18: 20 | E18: 18 | F18: 15 | G18: 18
B19: Ciências da Saúde | C19: 44 | D19: 41 | E19: 44 | F19: 36 | G19: 60
B20: Ciências Agrárias | C20: 105 | D20: 101 | E20: 108 | F20: 101 | G20: 122
B21: Ciências Sociais Aplicadas | C21: 37 | D21: 31 | E21: 40 | F21: 42 | G21: 59
B22: Ciências Humanas | C22: 24 | D22: 27 | E22: 25 | F22: 52 | G22: 39
B23: Linguística, Letras e Artes | C23: 13 | D23: 27 | E23: 35 | F23: 24 | G23: 24
B24: Total | C24: 307 | D24: 335 | E24: 335 | F24: 335 | G24: 363
B25: OBS: Período compreendido da bolsa: 1 de agosto a 31 julho do ano posterior
B28: Quadro - Histórico de bolsas de Iniciação Científica - por modalidade
B29: Modalidade/Fonte | C29: 2017/2018 | D29: 2018/2019 | E29: 2019/2020 | F29: 2020/2021 | G29: 2021/2022
B30: PIBIC CNPq | C30: 60 | D30: 60 | E30: 60 | F30: 60 | G30: 60
B31: PIBIC UEMS | C31: 220 | D31: 250 | E31: 251 | F31: 251 | G31: 276
B32: PIBITI CNPq | C32: 11 | D32: 9 | E32: 9 | F32: 9 | G32: 9
B33: PIBIC AAF | C33: 16 | D33: 16 | E33: 16 | F33: 15 | G33: 18
B34: Total | C34: 307 | D34: 335 | E34: 336 | F34: 335 | G34: 363
B35: OBS: Período compreendido da bolsa: 1 de agosto de 2021 a 1 janeiro de 2022
B36: PIBIC UEMS: Empréstimo entre editais UEMS: 2017/2018 3 bolsas; 2019/2020 1 bolsa; 2021/2022 28 bolsas
B39: Quadro - Histórico do quantitativo de alunos na Modalidade IC sem bolsa* - por área de conhecimento
B40: Áreas de conhecimento | C40: 2016 | D40: 2017 | E40: 2018 | F40: 2019 | G40: 2020 | H40: 2021 | I40: 2022*
B41: Ciências Exatas e da Terra | C41: 11 | D41: 11 | E41: 17 | F41: 8 | G41: 6 | H41: 9 | I41: 4
B42: Ciências Biológicas | C42: 6 | D42: 3 | E42: 7 | F42: 6 | G42: 11 | H42: 4 | I42: 3
B43: Engenharias | C43: 14 | D43: 1 | E43: 2 | F43: 3 | G43: 7 | H43: 1 | I43: 1
B44: Ciências da Saúde | C44: 4 | D44: 2 | E44: 3 | F44: 5 | G44: 1 | H44: 4 | I44: 0
B45: Ciências Agrárias | C45: 11 | D45: 3 | E45: 11 | F45: 22 | G45: 19 | H45: 6 | I45: 2
B46: Ciências Sociais Aplicadas | C46: 14 | D46: 4 | E46: 8 | F46: 17 | G46: 15 | H46: 10 | I46: 12
B47: Ciências Humanas | C47: 11 | D47: 8 | E47: 18 | F47: 15 | G47: 14 | H47: 11 | I47: 4
B48: Linguística, Letras e Artes | C48: 21 | D48: 15 | E48: 16 | F48: 19 | G48: 10 | H48: 6 | I48: 5
B49: Total | C49: 92 | D49: 47 | E49: 82 | F49: 95 | G49: 83 | H49: 51 | I49: =SUM(I41:I48) -> 31
B50: OBS: IC modalidade sem bolsa em execução
B51: *Dados referem-se ao 1º semestre de 2022
B53: Fonte: Divisão de Pesquisa, julho 2022

Sheet Grafico_historico
B11: Evolução da quantidade de bolsas de IC disponibilizadas aos discentes - por área do conhecimento | K11: Evolução da quantidade de bolsas de IC por modalidade PIBIC
B27: Evolução da quantidade de alunos na modalidade sem bolsa - por área do conhecimento

Sheet Menu_Pesquisa

Sheet Projetos_2022
B11: Objetivo: Informar a quantidade de Projetos de Pesquisa em execução e finalizados durante o ano de 2022
B14: Quadro – Projetos de pesquisa em execução e finalizados - por Unidade Universitária | I14: Quadro – Projetos de pesquisa em execução e finalizados - por Curso/CEPEXs
B15: Unidades Universitárias | C15: Execução 1º semestre | D15: Finalizados 1º semestre | E15: Execução 2º semestre | F15: Finalizados 2º semestre | G15: Inadimplente RF** | I15: Unidade Universitária | J15: Curso/Centro* | L15: Execução 1º semestre | M15: Finalizados 1º semestre | N15: Execução 2º semestre | O15: Finalizados 2º sem | P15: Inadimplente RF**
B16: Amambai | C16: 14 | D16: 2 | G16: 2 | I16: Amambai | J16: Ciências Sociais | L16: 7 | M16: 1 | P16: 0
B17: Aquidauana | C17: 40 | D17: 5 | G17: 1 | J17: História | L17: 7 | M17: 1 | P17: 2
B18: Campo Grande | C18: 60 | D18: 15 | G18: 2 | J18: PROFHISTORIA | L18: 0 | P18: 0
B19: Cassilândia | C19: 25 | D19: 2 | G19: 3 | I19: Aquidauana | J19: Agronomia | L19: 10 | P19: 1
B20: Coxim | C20: 1 | D20: 0 | G20: 1 | J20: Engenharia Florestal | L20: 8 | P20: 0
B21: Dourados | C21: 91 | D21: 16 | G21: 6 | J21: Zootecnia | L21: 19 | M21: 5 | P21: 0
B22: Glória de Dourados | C22: 0 | D22: 1 | G22: 1 | J22: CECA - Centro de Excelência em Ciência Animal do Cerrado e Pantanal | L22: 1 | P22: 0
B23: Ivinhema | C23: 3 | D23: 0 | G23: 0 | J23: CEMAP - Centro de Estudos em Meio Ambiente, Áreas Protegidas e Desenvolvimento Sustentável | L23: 2 | P23: 0
B24: Jardim | C24: 8 | D24: 2 | G24: 0 | J24: CEPROV - Centro de Estudos em Produção Vegetal | L24: 0 | P24: 0
B25: Maracaju | C25: 4 | D25: 0 | G25: 0 | I25: Campo Grande | J25: Artes Cênicas | L25: 4 | M25: 2
B26: Mundo Novo | C26: 7 | D26: 1 | G26: 0 | J26: Geografia Bacharel | L26: 17
B27: Naviraí | C27: 23 | D27: 3 | G27: 0 | J27: Geografia Licenciatura
B28: Nova Andradina | C28: 6 | D28: 2 | G28: 1 | J28: Letras Bacharel | L28: 2 | M28: 1 | P28: 1
B29: Paranaíba | C29: 30 | D29: 4 | G29: 3 | J29: Letras Port./Inglês | L29: 8 | M29: 4
B30: Ponta Porã | C30: 9 | D30: 0 | G30: 0 | J30: Letras Port./Esp. | L30: 3 | M30: 1
B31: Total | C31: =SUM(C16:C30) -> 321 | D31: =SUM(D16:D30) -> 53 | G31: =SUM(G16:G30) -> 20 | J31: Medicina | L31: 12 | M31: 5
B32: * Considera-se a data de aprovação do relatório final para a finalização do projeto | J32: Pedagogia | L32: 6 | M32: 2 | P32: 1
B33: **Refere-se a projetos que não são computados nem como em execução e nem como finalizados. | J33: Turismo | L33: 3
J34: Mestrado Letras | L34: 5
B35: Quadro – Projetos de pesquisa em execução e finalizados* - por Área de conhecimento | J35: CELMI - Centro de Pesquisa, Ensino e Extensão em Educação, Linguagem, Memória e Identidade | L35: 0
B36: Áreas de Conhecimento | C36: 1º semestre em execução | D36: Finalizados 1º semestre | E36: 2º semestre em execução | F36: Finalizados 2º semestre | G36: Inadimplente RF** | I36: Cassilândia | J36: Agronomia | L36: 17 | M36: 2 | P36: 1
B37: Ciências Exatas e da Terra | C37: 50 | D37: 10 | G37: 5 | J37: Letras | L37: 3 | P37: 1
B38: Ciências Biológicas | C38: 18 | D38: 4 | J38: Matemática | L38: 2
B39: Engenharias | C39: 12 | D39: 0 | J39: CEDESU-Centro de Desenvolvimento Sustentável do Bolsão sulmatogrossense | L39: 3 | P39: 1
B40: Ciências da Saúde | C40: 20 | D40: 4 | I40: Coxim | J40: Ciências Biológicas | L40: 1
B41: Ciências Agrárias | C41: 58 | D41: 8 | G41: 2 | J41: Gestão Ambiental | P41: 1
B42: Ciências Sociais Aplicadas | C42: 53 | D42: 7 | G42: 3 | I42: Dourados | J42: Ciências da Computação | L42: 7 | M42: 1
B43: Ciências Humanas | C43: 73 | D43: 9 | G43: 7 | J43: Ciências Biológicas Bacharel | L43: 2 | M43: 1
B44: Linguística, Letras e Artes | C44: 34 | D44: 11 | G44: 3 | J44: Ciências Biológicas Licenc.
B45: Outras | C45: 3 | D45: 0 | J45: Direito | L45: 6 | M45: 2 | P45: 1
B46: Total | C46: =SUM(C37:C45) -> 321 | D46: =SUM(D37:D45) -> 53 | G46: =SUM(G37:G45) -> 20 | J46: Enfermagem | L46: 11
B47: * Considera-se a data de aprovação do relatório final para a finalização do projeto | J47: Engenharia Ambiental | L47: 10 | P47: 1
B48: ** Refere-se a projetos que não são computados nem como em execução e nem como finalizados. | J48: Engenharia Ambiental e sanitária
J49: Engenharia Física | L49: 6 | M49: 2 | P49: 1
B50: Fonte: Divisão de Pesquisa, julho 2022 | J50: Física | L50: 1
J51: Letras Port./Inglês | L51: 4 | M51: 1 | P51: 1
J52: Letras Port./ Espanhol | L52: 5 | M52: 1
J53: Matemática | L53: 6 | M53: 1
J54: Pedagogia | L54: 3 | M54: 1
J55: Química | L55: 4 | P55: 2
J56: Química Industrial | L56: 1
J57: Sistema de Informação | L57: 3
J58: Turismo | L58: 5 | M58: 1
J59: CEPEMAT – Centro de Pesquisas em Materias | L59: 2
J60: CEPES - Centro de Ensino, Pesquisa e Extensão em Educação em Saúde | L60: 1
J61: CEPEGRE - Centro de Estudos, Pesquisa e Extensão em Educação, Gênero, Raça e Etnia | L61: 2 | M61: 1
J62: CERNA - Centro de Estudos em Recursos Naturais | L62: 8 | M62: 3
J63: PROFLETRAS-DOURADOS - Programa de Mestrado Profissional em Letras | L63: 1
J64: PGRN - Programa de Pós Graduação em Recursos Naturais | L64: 1 | M64: 1
J65: PROFMAT-Programa de Mestrado profissional em Matemática em Rede Nacional | L65: 1
J66: PRODHS | L66: 1
I67: Glória de Dourados | J67: Tecnologia em Agroecologia | P67: 1
J68: Tecnologia em Produção Sucroalcooleira | M68: 1
I69: Ivinhema | J69: Ciências Biológicas Bacharel | L69: 3
J70: Ciências Biológicas Licenc.
I71: Jardim | J71: Geografia Licenciatura | L71: 5 | M71: 1
J72: Letras | L72: 3 | M72: 1
I73: Maracaju | J73: Administração | L73: 2
J74: Pedagogia | L74: 2
I75: Mundo Novo | J75: Ciências Biológicas Licenc. | L75: 3 | M75: 1
J76: Tecnologia Gestão Ambiental | L76: 4
I77: Naviraí | J77: Química | L77: 9 | M77: 1
J78: Engenharia de Alimentos | L78: 3
J79: Direito | L79: 10 | M79: 2
J80: CDTEQ - Centro de Desenvolvimento em Tecnologias Químicas | L80: 1
I81: Nova Andradina | J81: Matemática | L81: 5 | P81: 1
J82: Computação | L82: 1 | M82: 2
I83: Paranaíba | J83: Ciências Sociais Bacharel | L83: 5 | P83: 1
J84: Ciências Sociais Licenciatura
J85: Direito | L85: 18 | M85: 2 | P85: 1
J86: Pedagogia | L86: 7 | M86: 2 | P86: 1
J87: CEPEED - Centro de Pesquisa, Ensino e Extensão em Educação | L87: 0
I88: Ponta Porã | J88: Administração de Empresas | L88: 2
J89: Ciências Contábeis | L89: 2
J90: Ciências Econômicas | L90: 3
J91: Mestrado em Desenvolvimento Regional e de Sistemas Produtivos | L91: 2
I92: Total | L92: =SUM(L16:L91) -> 321 | M92: =SUM(M16:M91) -> 53 | P92: =SUM(P16:P91) -> 20
I93: *Os docentes tem a opção de cadastrar seus projetos em cursos de graduação, pós-graduação, Centros de Pesquisa ou setores administrativos.
I94: **Refere-se a projetos que não são computados nem como em execução e nem como finalizados.

Sheet Projetos por tipo
B11: Objetivo: Informar a quantidade de Projetos de Pesquisa por tipo, cadastrados em 2022* na Divisão de Pesquisa/PROPPI
B14: Quadro – Projetos de pesquisa - por Unidade Universitária
B15: Unidades Universitárias | C15: Projetos com financiamento | F15: Projetos sem financiamento
C16: Interinstitucional | D16: Institucional | E16: Cooperação internacional | F16: Interinstitucional | G16: Institucional | H16: Cooperação internacional
B17: Amambai | G17: 1
B18: Aquidauana | C18: 2 | D18: 2 | G18: 3
B19: Campo Grande | C19: 1 | D19: 2 | F19: 1 | G19: 8
B20: Cassilândia | D20: 1 | G20: 4
B21: Coxim
B22: Dourados | C22: 4 | F22: 3 | G22: 6
B23: Glória de Dourados
B24: Ivinhema | F24: 1 | G24: 1
B25: Jardim | C25: 1 | G25: 2
B26: Maracaju
B27: Mundo Novo | C27: 1 | F27: 1
B28: Naviraí | C28: 1 | G28: 6
B29: Nova Andradina
B30: Paranaíba | G30: 4
B31: Ponta Porã
B32: Total | C32: =SUM(C17:C31) -> 10 | D32: =SUM(D17:D31) -> 5 | F32: =SUM(F17:F31) -> 6 | G32: =SUM(G17:G31) -> 35
B33: Total Geral | C33: =SUM(C32:E32) -> 15 | F33: =SUM(F32:H32) -> 41
B36: Quadro – Projetos de pesquisa - por área de conhecimento
B37: Áreas de Conhecimento | C37: Projetos com financiamento | F37: Projetos sem financiamento
C38: Interinstitucional | D38: Institucional | E38: Cooperação internacional | F38: Interinstitucional | G38: Institucional | H38: Cooperação internacional
B39: Ciências Exatas e da Terra | C39: 2 | F39: 2 | G39: 7
B40: Ciências Biológicas | F40: 3
B41: Engenharias | C41: 1
B42: Ciências da Saúde | C42: 1 | G42: 2
B43: Ciências Agrárias | C43: 2 | D43: 3 | G43: 5
B44: Ciências Sociais Aplicadas | C44: 1 | G44: 4
B45: Ciências Humanas | C45: 2 | D45: 1 | G45: 9
B46: Linguística, Letras e Artes | D46: 1 | F46: 1 | G46: 7
B47: Outras | C47: 1 | G47: 1
B48: Total | C48: =SUM(C39:C47) -> 10 | D48: =SUM(D39:D47) -> 5 | F48: =SUM(F39:F47) -> 6 | G48: =SUM(G39:G47) -> 35
B49: Total Geral | C49: =SUM(C48:E48) -> 15 | F49: =SUM(F48:H48) -> 41
B51: *Dados refere-se ao 1º semestre
B53: Fonte: Divisão de Pesquisa, julho 2022

Sheet Recurso_proj_indiv
B11: Objetivo: Informar o volume de recursos financeiros captados por projetos de pesquisa individuais destinados a UEMS
B13: Quadro - Recursos financeiros captados por projetos individuais - por Unidade Universitária
B15: Unidades Universitárias | C15: Ano*
C16: 2016 | D16: 2017 | E16: 2018 | F16: 2019 | G16: 2020 | H16: 2021 | I16: 2022**
B17: Amambai | C17: - | D17: - | E17: - | F17: - | G17: -
B18: Aquidauana | C18: 284852 | D18: 33400 | E18: 1620068.22 | F18: - | G18: 1829324.9 | H18: 289245 | I18: 1349527.15
B19: Campo Grande | C19: 58118 | D19: 67927.1 | E19: 9809.1 | F19: - | G19: 549328.8 | I19: 158100
B20: Cassilândia | C20: 39600 | D20: - | E20: 282250 | F20: - | G20: 259312 | I20: 39600
B21: Coxim | C21: - | D21: - | E21: - | F21: - | G21: -
B22: Dourados | C22: 342500 | D22: 472500.4 | E22: 863160.4 | F22: 39600 | G22: 4360458.06 | H22: 61495 | I22: 852825.85
B23: Glória de Dourados | C23: - | D23: - | E23: - | F23: - | G23: -
B24: Ivinhema | C24: - | D24: - | E24: - | F24: - | G24: -
B25: Jardim | C25: - | D25: - | E25: 90000 | F25: 43808.1 | G25: 133808.1 | I25: 60000
B26: Maracaju | C26: - | D26: - | E26: - | F26: - | G26: -
B27: Mundo Novo | C27: - | D27: - | E27: - | F27: - | G27: 7872714.34 | I27: 674041.51
B28: Naviraí | C28: 21000 | D28: - | E28: 66300 | F28: - | G28: 116300 | I28: 168200
B29: Nova Andradina | C29: - | D29: - | E29: - | F29: - | G29: -
B30: Paranaíba | C30: - | D30: - | E30: 22900 | F30: - | G30: 22900
B31: Ponta Porã | C31: - | D31: - | E31: 35000 | F31: - | G31: 35000
B32: Total | C32: 746070 | D32: 573827.5 | E32: 2989487.72 | F32: 83408.1 | G32: 15179146.2 | H32: 350740 | I32: =SUM(I17:I31) -> 3302294.51
B35: Quadro - Recursos financeiros captados por projetos individuais - por área de conhecimento
B36: Áreas de Conhecimento | C36: Ano*
C37: 2016 | D37: 2017 | E37: 2018 | F37: 2019 | G37: 2020 | H37: 2021 | I37: 2022**
B38: Ciências Exatas e da Terra | C38: 21000 | D38: 130000 | E38: 324900 | F38: 83408.1 | G38: 1365563.1 | H38: 61495 | I38: 99600
B39: Ciências Biológicas | C39: 24000 | D39: 24000 | E39: 256060 | F39: - | G39: 118060 | I39: 39600
B40: Engenharias | C40: - | D40: - | E40: - | F40: - | G40: 3001702.66 | I40: 750000
B41: Ciências da Saúde | C41: - | D41: 9809.1 | E41: 39809.1 | F41: - | G41: 778331.4 | I41: 23625.85
B42: Ciências Agrárias | C42: 324452 | D42: 33400 | E42: 1902318.22 | F42: - | G42: 9361351.24 | H42: 289245 | I42: 1389127.15
B43: Ciências Sociais Aplicadas | C43: - | D43: - | E43: 35000 | F43: - | G43: - | I43: 168200
B44: Ciências Humanas | C44: 348118 | D44: 348118.4 | E44: 431400 | F44: - | G44: 528310.4 | I44: 118500
B45: Linguística, Letras e Artes | C45: 28500 | D45: 28500 | E45: - | F45: - | G45: 25827.4 | I45: 39600
B46: Outras | I46: 674041.51
B47: Total | C47: 746070 | D47: 573827.5 | E47: 2989487.32 | F47: 83408.1 | G47: 15179146.2 | H47: 350740 | I47: =SUM(I38:I46) -> 3302294.51
B50: * Nos período de 2016 a 2020, foram considerados os projetos em execução durante o ano, a partir de 2021, foram considerados os projetos cadastrados naquele ano, sendo por ano de cadastro.
B53: **Dados referem-se ao 1º semestre de 2022
B55: Fonte: Divisão de Pesquisa, julho 2022

Sheet Historico_projeto
B11: Objetivo: Apresentar a série histórica envolvendo dados dos projetos de pesquisa
B14: Quadro - Histórico de projetos de pesquisa - por categoria e ano*
B15: Categoria | C15: 2016 | D15: 2017 | E15: 2018 | F15: 2019 | G15: 2020 | H15: 2021 | I15: 2022**
B16: Projetos sem financiamento | C16: 380 | D16: 286 | E16: 272 | F16: 295 | G16: 255 | H16: 91 | I16: 41
B17: Projetos com cooperação internacional | C17: 1 | D17: - | E17: 2 | F17: - | G17: - | H17: -
B18: Projetos com financiamento | C18: 14 | D18: 9 | E18: 39 | F18: 9 | G18: 44 | H18: 3 | I18: 15
B19: * Nos períodos de 2016 a 2020, foram considerados os projetos em execução durante o ano, a partir de 2021, foram considerados os projetos cadastrados naquele ano, sendo por ano de cadastro.
B22: Quadro – Projetos de pesquisa em execução e finalizados*
B23: Categoria | C23: 2016 | D23: 2017 | E23: 2018 | F23: 2019 | G23: 2020 | H23: 2021 | I23: 2022**
B24: Projetos em execução | C24: 380 | D24: 286 | E24: 272 | F24: 295 | G24: 300 | H24: 311 | I24: 321
B25: Projetos finalizados | C25: 69 | D25: 98 | E25: 83 | F25: 47 | G25: 71 | H25: 86 | I25: 53
B26: Inadimplentes*** | C26: - | D26: - | E26: - | F26: - | G26: - | H26: 32 | I26: 20
B27: *Quantidade referente aos projetos cadastrados até 12/2021
B28: ** Refere-se a projetos que não são computados nem como em execução e nem como finalizados.
B30: Quadro - Volume de recursos capactados por projetos individuais*
B31: Categoria | C31: 2016 | D31: 2017 | E31: 2018 | F31: 2019 | G31: 2020 | H31: 2021 | I31: 2022**
B32: Projetos individuais | C32: 746070 | D32: 573827.5 | E32: 2989487.32 | F32: 83408.1 | G32: 15179146.2 | H32: 350740 | I32: 3302294.51
B33: * Nos período de 2016 a 2020, foram considerados os projetos em execução durante o ano, a partir de 2021, foram considerados os projetos cadastrados naquele ano, sendo por ano de cadastro.
B36: **Dados referem-se ao 1º semestre de 2022
B38: Fonte: Divisão de Pesquisa, julho 2022

Sheet Grafico_projeto
B11: Evolução da quantidade de projetos de pesquisa - por categoria e ano | J11: Evolução da quantidade de projetos de pesquisa em execução e finalizados
B26: * Nos períodos de 2016 a 2020, foram considerados os projetos em execução durante o ano, a partir de 2021, foram considerados os projetos cadastrados naquele ano, sendo por ano de cadastro.
B32: Evolução do volume de recursos captados por projetos individuais

Sheet GP
B11: Objetivo: Indicar a quantidade de grupos de pesquisa cadastrados no diretório do CNPq, por grande área de conhecimento
B14: Quadro - Quantidade de grupos de pesquisa - por área de conhecimento
B15: Áreas de Conhecimento | C15: 2018 | E15: 2019 | G15: 2020 | I15: 2021 | K15: 2022**
C16: Certificados* | D16: Em preenchimento | E16: Certificados* | F16: Em preenchimento | G16: Certificados* | H16: Em preenchimento | I16: Certificados* | J16: Em preenchimento | K16: Certificados* | L16: Em preenchimento
B17: Ciências Exatas e da Terra | C17: 14 | D17: - | E17: 14 | F17: 1 | G17: 9 | H17: 1 | I17: 7 | J17: 2 | K17: 11 | L17: 0
B18: Ciências Biológicas | C18: 7 | D18: - | E18: 5 | F18: 1 | G18: 3 | H18: 1 | I18: 7 | J18: 0 | K18: 7 | L18: 0
B19: Engenharias | C19: 1 | D19: - | E19: 1 | F19: - | G19: 2 | H19: - | I19: 2 | J19: 1 | K19: 3 | L19: 0
B20: Ciências da Saúde | C20: 7 | D20: - | E20: 5 | F20: 3 | G20: 6 | H20: 1 | I20: 6 | J20: 1 | K20: 5 | L20: 2
B21: Ciências Agrárias | C21: 16 | D21: 1 | E21: 18 | F21: 1 | G21: 22 | H21: 5 | I21: 20 | J21: 6 | K21: 22 | L21: 4
B22: Ciências Sociais Aplicadas | C22: 9 | D22: 2 | E22: 7 | F22: - | G22: 13 | H22: 1 | I22: 13 | J22: 2 | K22: 14 | L22: 4
B23: Ciências Humanas | C23: 25 | D23: - | E23: 23 | F23: - | G23: 22 | H23: 5 | I23: 24 | J23: 4 | K23: 27 | L23: 3
B24: Linguística, Letras e Artes | C24: 15 | D24: 4 | E24: 18 | F24: 4 | G24: 17 | H24: 5 | I24: 16 | J24: 7 | K24: 20 | L24: 4
B25: Total | C25: 94 | D25: 7 | E25: 91 | F25: 10 | G25: 94 | H25: 19 | I25: 95 | J25: 23 | K25: =SUM(K17:K24) -> 109 | L25: =SUM(L17:L24) -> 17
B26: * certificados com ou sem atualização há mais de 12 meses
B27: **Dados referem-se ao 1º semestre de 2022
B29: Fonte: Diretório de grupos de pesquisa/CNPq, julho 2022

Sheet Bolsista_Prod
B11: Objetivo: Indicar o número de docentes contemplados com bolsa Produtividade em Pesquisa (PQ) do CNPq
B15: Quadro - Quantidade de bolsistas Produtividade em Pesquisa
B16: Áreas de Conhecimento | C16: Ano de concessão
C17: 2017 | D17: 2018 | E17: 2019 | F17: 2020 | G17: 2021 | H17: 2022*
B18: Ciências Exatas e da Terra | C18: 3 | D18: 3 | E18: 3 | F18: 4 | G18: 4 | H18: 5
B19: Ciências Biológicas | C19: 2 | D19: 2 | E19: 1 | F19: 2 | G19: 2 | H19: 2
B20: Engenharias | C20: - | D20: - | E20: - | F20: - | G20: -
B21: Ciências da Saúde | C21: - | D21: - | E21: - | F21: 1 | G21: 1 | H21: 1
B22: Ciências Agrárias | C22: 2 | D22: 2 | E22: 2 | F22: 2 | G22: 1 | H22: 2
B23: Ciências Sociais Aplicadas | C23: - | D23: - | E23: - | F23: - | G23: -
B24: Ciências Humanas | C24: - | D24: - | E24: - | F24: - | G24: -
B25: Linguística, Letras e Artes | C25: - | D25: - | E25: - | F25: - | G25: - | H25: 1
B26: Total | C26: 7 | D26: 7 | E26: 6 | F26: 9 | G26: 8 | H26: =SUM(H18:H25) -> 11
B27: *Dados referem-se ao primeiro semestre de 2022
B29: Fonte: Divisão de Pesquisa/CNPq, julho 2022

Sheet Producao_docente
B12: Objetivo: Indicar o quantitativo de produção de docentes da UEMS (exceto: vacância, falecido, exonerado e externo)
B15: Quadro - Quantidade de artigos publicados em periódicos
B16: Ano da produção | C16: Artigos publicados em periódicos | D16: Trabalho publicado em anais de evento | E16: Capítulo de livro | F16: Livro
B17: 2016 | C17: 578 | D17: 1023 | E17: 235 | F17: 67
B18: 2017 | C18: 556 | D18: 1049 | E18: 204 | F18: 37
B19: 2018 | C19: 601 | D19: 904 | E19: 356 | F19: 24
B20: 2019 | C20: 595 | D20: 859 | E20: 248 | F20: 27
B21: 2020 | C21: 702 | D21: 329 | E21: 279 | F21: 39
B22: 2021 | C22: 521 | D22: 327 | E22: 274 | F22: 50
B23: 2022* | C23: 159 | D23: 43 | E23: 47 | F23: 11
B24: *Dados referem-se ao 1º semestre de 2022.
B26: Fonte: Dados Stela Experta, 01/07/2022.

Sheet Producao_Cepex
B12: Objetivo: Indicar o quantitativo de artigos científicos publicados em periódicos, de docentes vinculados a CEPEX (exceto: vacância, falecido, exonerado e externo)
B16: Taxa produção de artigos científicos de docentes vinculados ao CEPEX
B17: TProd=ProdDocCEPEX/TProdDoc x 100
B18: ProdDocCEPEX= nº de produções docentes vinculados ao CEPEX | I18: TProd 2020= 425/690x100= 61,6%
B19: TProdDoc= nº total de produções dos docentes da UEMS | I19: TProd 2021= 228/437x100=52,17%
B22: Quadro - Quantidade de artigos publicados em periódicos
B23: CEPEX | C23: Ano de Produção | J23: Indicador atualizado anualmente com os dados referentes ao ano anterior.
C24: 2016 | D24: 2017 | E24: 2018 | F24: 2019 | G24: 2020 | H24: 2021
B25: CERNA | C25: 87 | D25: 79 | E25: 116 | F25: 140 | G25: 103 | H25: 77
B26: CDTEQ | C26: 22 | D26: 10 | E26: 21 | F26: 17 | G26: 18 | H26: 12
B27: CECA | C27: 34 | D27: 23 | E27: 26 | F27: 29 | G27: 41 | H27: 21
B28: CEDESU | C28: 64 | D28: 60 | E28: 67 | F28: 75 | G28: 100 | H28: 44
B29: CELMI | C29: 19 | D29: 30 | E29: 17 | F29: 32 | G29: 32 | H29: 13
B30: CEMAP | C30: 3 | D30: 1 | E30: 3 | F30: 4 | G30: 2 | H30: 0
B31: CEPEED | C31: 19 | D31: 13 | E31: 21 | F31: 15 | G31: 19 | H31: 9
B32: CEPEGRE | C32: 17 | D32: 5 | E32: 7 | F32: 14 | G32: 18 | H32: 9
B33: CEPEMAT | C33: 14 | D33: 5 | E33: 13 | F33: 7 | G33: 4 | H33: 6
B34: CEPES | C34: 19 | D34: 19 | E34: 23 | F34: 21 | G34: 39 | H34: 15
B35: CEPROV | C35: 54 | D35: 35 | E35: 28 | F35: 26 | G35: 49 | H35: 22
B36: Total Geral | C36: 352 | D36: 280 | E36: 342 | F36: 380 | G36: 425 | H36: 228
B37: Fonte: Stela Experta 28/01/2022, dados gerados a partir da Plataforma Lattes do CNPq.

Sheet Menu_pos

Sheet Ofertados
B11: Objetivo: Apresentar a oferta de cursos e programas de pós-graduação
B13: Percentual de cursos de especialização nas Unidades Universitárias fora da sede
B14: Fórmula de cálculo: IPlsUE = PlsUE/TPls x 100
B15: PlsUE = nº de Cursos de Pós-Graduação Lato Sensu em Unidades Universitárias fora de Dourados
B16: TPls = nº total de Cursos de Pós-Graduação lato sensu da UEMS
B18: =7/8 -> 0.875 | C18: lato sensu fora da sede (Dourados)
B20: Taxa de novos cursos Lato Sensu (especialização)
B21: TNCurEsp=NCurEsp/TCurEsp x 100
B22: NCurEsp= nº de novos cursos de especialização implantados: 3
B23: TCurEsp= nº total de cursos de especialização na UEMS: 8
B24: =3/8 -> 0.375 | C24: novos cursos lato sensu
B26: Percentual de programas stricto sensu nas Unidades Universitárias fora da sede
B27: Fórmula de cálculo: IPlsUE = PlsUE/TPls x 100
B28: PlsUE = nº de Programas de Pós-Graduação Stricto Sensu em Unidades Universitárias fora de Dourados: 9
B29: TPls = nº total de Programas de Pós-Graduação Stricto Sensu da UEMS:14
B30: =9/14 -> 0.6428571429 | C30: stricto sensu fora da sede (Dourados)
B33: Quadro - Cursos de Pós-Graduação Lato Sensu - Especialização ofertados
B34: Curso | C34: Unidade Universitária/Polo
B35: Direitos Difusos e Coletivos | C35: Dourados
B36: Gestão do Turismo | C36: Campo Grande
B37: Residência Multiprofissional em Saúde da Família | C37: Campo Grande
B38: Residência Multiprofissional em Saúde da Família (turma 2) | C38: Campo Grande
B39: Gestão Pública | C39: Maracaju
B40: Direito e Vulnerabilidade | C40: Naviraí
B41: Direitos Humanos | C41: Paranaíba
B42: Políticas Públicas, Cultura e Sociedade | C42: Paranaíba
B45: Quadro - Programas de Pós-graduação stricto sensu ofertados, com data de implantação e conceito Capes
B46: Curso | C46: Nível | D46: Unidade Universitária | E46: Implantação | F46: Conceito Capes
B47: Agronomia: Produção Vegetal | C47: Doutorado Acadêmico | D47: Aquidauana | E47: 2015 | F47: 4
B48: Agronomia: Produção Vegetal | C48: Mestrado Acadêmico | D48: Aquidauana | E48: 2009 | F48: 4
B49: Agronomia: Sustentabilidade na Agricultura | C49: Mestrado Acadêmico | D49: Cassilândia | E49: 2012 | F49: 3
B50: Desenvolvimento Regional e de Sistemas Produtivos | C50: Mestrado Acadêmico | D50: Ponta Porã | E50: 2014 | F50: 3
B51: Educação: Educação, Linguagem e Sociedade | C51: Mestrado Acadêmico | D51: Paranaíba | E51: 2011 | F51: 3
B52: Zootecnia: Produção Animal no Cerrado Pantanal | C52: Mestrado Acadêmico | D52: Aquidauana | E52: 2010 | F52: 3
B53: Letras: Língua e Literatura | C53: Mestrado Acadêmico | D53: Campo Grande | E53: 2011 | F53: 3
B54: Recursos Naturais | C54: Doutorado Acadêmico | D54: Dourados | E54: 2013 | F54: 4
B55: Recursos Naturais | C55: Mestrado Acadêmico | D55: Dourados | E55: 2010 | F55: 4
B56: Educação | C56: Mestrado Profissional | D56: Campo Grande | E56: 2012 | F56: 4
B57: Educação Científica e Matemática | C57: Mestrado Profissional | D57: Dourados | E57: 2015 | F57: 3
B58: Ensino em Saúde | C58: Mestrado Profissional | D58: Dourados | E58: 2013 | F58: 3
B59: História | C59: Mestrado Profissional em Rede | D59: Amambai | E59: 2016 | F59: 4
B60: Letras | C60: Mestrado Profissional em Rede | D60: Dourados | E60: 2014 | F60: 4
B61: Letras | C61: Mestrado Profissional em Rede | D61: Campo Grande | E61: 2013 | F61: 4
B62: Matemática | C62: Mestrado Profissional em Rede | D62: Dourados | E62: 2011 | F62: 5
B64: Fonte: SIGPÓS, julho 2022

Sheet Historico
B11: Objetivo: Apresentar a série histórica envolvendo dados do corpo discente na Pós-Graduação Lato e Stricto Sensu.
B13: Quadro - Histórico do número de cursos e programas de pós-graduação da UEMS
B15: Pós-Graduação | C15: 2016 | D15: 2017 | E15: 2018 | F15: 2019 | G15: 2020 | H15: 2021 | I15: 2022*
B16: Doutorado | C16: 2 | D16: 2 | E16: 2 | F16: 2 | G16: 2 | H16: 2 | I16: 2
B17: Mestrado | C17: 14 | D17: 14 | E17: 14 | F17: 14 | G17: 14 | H17: 14 | I17: 14
B18: Especialização | C18: 11 | D18: 17 | E18: 20 | F18: 5 | G18: 11 | H18: 10 | I18: 8
B19: Total | C19: 27 | D19: 33 | E19: 36 | F19: 21 | G19: 27 | H19: 26 | I19: =SUM(I16:I18) -> 24
B21: Quadro - Histórico do número de vagas em cursos e programas de pós-graduação da UEMS
B23: Pós-Graduação | C23: 2016 | D23: 2017 | E23: 2018 | F23: 2019 | G23: 2020 | H23: 2021 | I23: 2022*
B24: Doutorado | C24: 18 | D24: 27 | E24: 39 | F24: 28 | G24: 16 | H24: 19 | I24: 25
B25: Mestrado | C25: 142 | D25: 289 | E25: 333 | F25: 312 | G25: 311 | H25: 426 | I25: 276
B26: Especialização | C26: 80 | D26: 1083 | E26: 250 | F26: 75 | G26: 286 | H26: 79 | I26: 62
B27: Total | C27: 240 | D27: 1399 | E27: 622 | F27: 415 | G27: 613 | H27: 524 | I27: =SUM(I24:I26) -> 363
B29: Quadro - Histórico do número de ingressantes em cursos e programas de pós-graduação da UEMS
B31: Pós-Graduação | C31: 2016 | D31: 2017 | E31: 2018 | F31: 2019 | G31: 2020 | H31: 2021 | I31: 2022*
B32: Doutorado | C32: 16 | D32: 14 | E32: 15 | F32: 13 | G32: 11 | H32: 11 | I32: 21
B33: Mestrado | C33: 127 | D33: 244 | E33: 266 | F33: 228 | G33: 190 | H33: 203 | I33: 139
B34: Especialização | C34: 80 | D34: 541 | E34: 197 | F34: 71 | G34: 184 | H34: 63 | I34: 57
B35: Total | C35: 223 | D35: 799 | E35: 478 | F35: 312 | G35: 385 | H35: 277 | I35: =SUM(I32:I34) -> 217
B37: Quadro – Alunos matriculados em cursos e programas de pós-graduação da UEMS. Consolidados por ano.
B39: Pós-Graduação | C39: 2016 | D39: 2017 | E39: 2018 | F39: 2019 | G39: 2020 | H39: 2021 | I39: 2022*
B40: Doutorado | C40: 25 | D40: 39 | E40: 53 | F40: 64 | G40: 60 | H40: 61 | I40: 71
B41: Mestrado | C41: 124 | D41: 367 | E41: 593 | F41: 668 | G41: 613 | H41: 584 | I41: 522
B42: Especialização | C42: 80 | D42: 617 | E42: 735 | F42: 219 | G42: 238 | H42: 218 | I42: 131
B43: Total | C43: 229 | D43: 1023 | E43: 1381 | F43: 951 | G43: 911 | H43: 863 | I43: =SUM(I40:I42) -> 724
B46: Quadro - Histórico do número de concluintes em cursos e programas de pós-graduação da UEMS
B48: Pós-Graduação | C48: 2016 | D48: 2017 | E48: 2018 | F48: 2019 | G48: 2020 | H48: 2021 | I48: 2022*
B49: Doutorado | C49: - | D49: - | E49: - | F49: 15 | G49: 8 | H49: 4 | I49: 8
B50: Mestrado | C50: - | D50: 2 | E50: 108 | F50: 206 | G50: 132 | H50: 83 | I50: 67
B51: Especialização | C51: - | D51: 1 | E51: 376 | F51: 94 | G51: 21 | H51: 29 | I51: 29
B52: Total | C52: 0 | D52: 3 | E52: 484 | F52: 315 | G52: 161 | H52: 116 | I52: =SUM(I49:I51) -> 104
B54: Quadro - Histórico do número de evadidos em cursos e programas de pós-graduação da UEMS
B56: Pós-Graduação | C56: 2016 | D56: 2017 | E56: 2018 | F56: 2019 | G56: 2020 | H56: 2021 | I56: 2022*
B57: Doutorado | C57: - | D57: 1 | E57: 1 | F57: 1 | G57: - | H57: - | I57: 4
B58: Mestrado | C58: - | D58: 8 | E58: 35 | F58: 37 | G58: 25 | H58: 21 | I58: 22
B59: Total Stricto Sensu** | C59: 0 | D59: 0.02216748768 | E59: 0.05572755418 | F59: 0.05191256831 | G59: 0.03714710253 | H59: 0.03255813953 | I59: =(I58+I57)/(I40+I41) -> 0.04384485666
B60: Especialização | C60: - | D60: 18 | E60: 230 | F60: 144 | G60: 22 | H60: 18 | I60: 11
B61: Total Especialização*** | C61: - | D61: 0.02917341977 | E61: 0.3129251701 | F61: 0.6575342466 | G61: 0.09243697479 | H61: 0.08256880734 | I61: =I60/I42 -> 0.08396946565
B62: Total geral de evadidos | C62: 0 | D62: 27 | E62: 266 | F62: 182 | G62: 47 | H62: 39 | I62: 37
B63: **percentual de evadidos em relação ao total de matriculados nos programas stricto sensu
B65: ***percentual de evadidos em relação ao total de matriculados nas Especializações
B68: OBS: Dados agrupados por ano, conforme Indicadores SIGPOS julho 2022. O Sigpós foi implantado em 2018.

Sheet Grafico_historico_pos
B11: Evolução do número de cursos e programas de pós-graduação | J11: Evolução do número de vagas nos cursos e programas de pós-graduação
B28: Evolução do número de ingressantes nos cursos e programas de pós-graduação | J28: Evolução do número de matriculados em cursos e programas de pós-graduação
B45: Evolução do número de concluintes em cursos e programas de pós-graduação | J45: Evolução do número de evadidos em cursos e programas de pós-graduação

Sheet Dados_stricto
B12: Objetivo: Apresentar os dados da pós-graduação stricto sensu relativos a vagas, ingressantes, matriculados, concluintes, afastados e evadidos
B14: Alunos matriculados
B15: Em 2022 | C15: 593 | D15: (Sigpós, sem duplicações)
B17: Alunos concluintes
B18: Em 2022 | C18: 75 | D18: (Sigpós, sem duplicações)
B20: Evadidos e afastados
B21: Em 2022 | C21: =SUM(J62,K62) -> 24 | D21: (Sigpós, sem duplicações)
B24: Quadro - Número de vagas (V), ingressantes (I), matriculados (M), concluintes (C), evadidos (E) e afastados (A) em Programas de Pós-graduação Stricto Sensu
B25: Curso | C25: Unidade Universitária | D25: Nível | E25: Período | F25: V | G25: I | H25: M | I25: C | J25: E | K25: A
B26: Agronomia: Produção Vegetal | C26: Aquidauana | D26: Mestrado Acadêmico | E26: 2022/1 | F26: 20 | G26: 10 | H26: 34 | I26: 8 | J26: 2 | K26: 0
E27: 2022/2
B28: Agronomia: Sustentabilidade na Agricultura | C28: Cassilândia | D28: Mestrado Acadêmico | E28: 2022/1 | F28: 20 | G28: 8 | H28: 24 | I28: 4 | J28: 4 | K28: 1
E29: 2022/2
B30: Desenvolvimento Regional e de Sistemas Produtivos | C30: Ponta Porã | D30: Mestrado Acadêmico | E30: 2022/1 | F30: 0 | G30: 0 | H30: 23 | I30: 2 | J30: 0 | K30: 0
E31: 2022/2
B32: Educação: Educação, Linguagem e Sociedade | C32: Paranaíba | D32: Mestrado Acadêmico | E32: 2022/1 | F32: 0 | G32: 0 | H32: 75 | I32: 3 | J32: 4 | K32: 0
E33: 2022/2 | F33: 30 | H33: 1 | I33: 1
B34: Letras: Linguagem: Língua e Literatura | C34: Campo Grande | D34: Mestrado Acadêmico | E34: 2022/1 | F34: 41 | G34: 37 | H34: 90 | I34: 9 | J34: 1 | K34: 0
E35: 2022/2
B36: Recursos Naturais | C36: Dourados | D36: Mestrado Acadêmico | E36: 2022/1 | F36: 20 | G36: 14 | H36: 46 | I36: 14 | J36: 0 | K36: 0
E37: 2022/2 | I37: 4 | J37: 2
B38: Zootecnia: Produção Animal no Cerrado Pantanal | C38: Aquidauana | D38: Mestrado Acadêmico | E38: 2022/1 | F38: 15 | G38: 9 | H38: 33 | I38: 8 | J38: 1 | K38: 0
E39: 2022/2 | J39: 1
B40: Mestrado acadêmico | F40: =SUM(F26:F39) -> 146 | G40: =SUM(G26:G39) -> 78 | H40: 326 | I40: 53 | J40: 15 | K40: 1
B41: Educação | C41: Campo Grande | D41: Mestrado Profissional | E41: 2022/1 | F41: 30 | G41: 25 | H41: 72 | I41: 0 | J41: 3 | K41: 0
E42: 2022/2 | H42: 4
B43: Educação Científica e Matemática | C43: Dourados | D43: Mestrado Profissional | E43: 2022/1 | F43: 0 | G43: 0 | H43: 47 | I43: 1 | J43: 2 | K43: 1
E44: 2022/2
B45: Ensino em Saúde | C45: Dourados | D45: Mestrado Profissional | E45: 2022/1 | F45: 0 | G45: 0 | H45: 17 | I45: 4 | J45: 0 | K45: 0
E46: 2022/2 | F46: 16 | I46: 1
B47: História | C47: Amambai | D47: Mestrado Profissional em Rede | E47: 2022/1 | F47: 26 | G47: 18 | H47: 21 | I47: 1 | J47: 0 | K47: 0
E48: 2022/2 | I48: 1
B49: Letras | C49: Dourados | D49: Mestrado Profissional em Rede | E49: 2022/1 | F49: 10 | G49: 6 | H49: 9 | I49: 0 | J49: 1 | K49: 0
E50: 2022/2
B51: Letras | C51: Campo Grande | D51: Mestrado Profissional em Rede | E51: 2022/1 | F51: 25 | G51: 9 | H51: 18 | I51: 0 | J51: 1 | K51: 0
E52: 2022/2
B53: Matemática | C53: Dourados | D53: Mestrado Profissional em Rede | E53: 2022/1 | F53: 3 | G53: 3 | H53: 13 | I53: 3 | J53: 0 | K53: 0
E54: 2022/2 | I54: 1
B55: Mestrado profissional | F55: =SUM(F41:F54) -> 110 | G55: =SUM(G41:G54) -> 61 | H55: 201 | I55: 12 | J55: 7 | K55: 1
B56: Mestrado acadêmico + profissional | F56: =SUM(F40,F55) -> 256 | G56: =SUM(G40,G55) -> 139 | H56: 527 | I56: 65 | J56: 22 | K56: 2
B57: Agronomia: Produção Vegetal | C57: Aquidauana | D57: Doutorado Acadêmico | E57: 2022/1 | F57: 10 | G57: 6 | H57: 30 | I57: 0 | J57: 0 | K57: 0
E58: 2022/2 | F58: 10 | G58: 6 | H58: 30 | I58: 1 | J58: 0 | K58: 0
B59: Recursos Naturais | C59: Dourados | D59: Doutorado Acadêmico | E59: 2022/1 | F59: 9 | G59: 5 | H59: 31 | I59: 0 | J59: 0 | K59: 0
E60: 2022/2 | F60: 9 | G60: 5 | H60: 31 | I60: 3 | J60: 0 | K60: 0
B61: Doutorado | F61: =SUM(F57:F60) -> 38 | G61: =SUM(G57:G60) -> 22 | H61: 122 | I61: 4 | J61: 0 | K61: 0
B62: Geral (mestrado + doutorado) | F62: =SUM(F40,F55,F61) -> 294 | G62: =SUM(G40,G55,G61) -> 161 | H62: 649 | I62: 69 | J62: 22 | K62: 2
B63: Fonte: SIGPÓS, julho 2022

Sheet demanda_stricto
B11: Objetivo: Apresentar a relação candidato x vaga representando a procura por mestrados e doutorados
B13: Fórmula de cálculo: DPPGr = NI/NV
B14: NI é nº de candidatos inscritos no processo seletivo do mestrado e/ou doutorado
B15: NV é nº de vagas no processo seletivo do mestrado e/ou doutorado
B17: Quadro - Número de vagas (V) e inscritos (I) nos processos seletivos dos Programas de Pós-graduação Stricto Sensu
B18: Curso | C18: Unidade Universitária | D18: Nível | E18: Turma 2022 | G18: Relação candidato x vaga
E19: V | F19: I
B20: Agronomia: Produção Vegetal | C20: Aquidauana | D20: Mestrado Acadêmico | E20: 20 | F20: 16 | G20: =16/20 -> 0.8
B21: Agronomia: Sustentabilidade na Agricultura | C21: Cassilândia | D21: Mestrado Acadêmico | E21: 30 | F21: 11 | G21: =F21/E21 -> 0.3666666667
B22: Desenvolvimento Regional e de Sistemas Produtivos | C22: Ponta Porã | D22: Mestrado Acadêmico | E22: 10 | F22: 38 | G22: =F22/E22 -> 3.8
B23: Educação: Educação, Linguagem e Sociedade | C23: Paranaíba | D23: Mestrado Acadêmico | E23: 30 | F23: 74 | G23: 2.466666667
B24: Letras: Linguagem: Língua e Literatura | C24: Campo Grande | D24: Mestrado Acadêmico | E24: 41 | F24: 89 | G24: 2.170731707
B25: Recursos Naturais | C25: Dourados | D25: Mestrado Acadêmico | E25: 20 | F25: 43 | G25: 2.15
B26: Zootecnia: Produção Animal no Cerrado Pantanal | C26: Aquidauana | D26: Mestrado Acadêmico | E26: 15 | F26: 11 | G26: 0.7333333333
B27: Total Mestrado acadêmico | E27: =SUM(E20:E26) -> 166 | F27: =SUM(F20:F26) -> 282 | G27: =F27/E27 -> 1.698795181
B28: Educação | C28: Campo Grande | D28: Mestrado Profissional | E28: 30 | F28: 246 | G28: =F28/E28 -> 8.2
B29: Educação Científica e Matemática* | C29: Dourados | D29: Mestrado Profissional | E29: - | F29: - | G29: -
B30: Ensino em Saúde | C30: Dourados | D30: Mestrado Profissional | E30: 16 | F30: 21 | G30: =F30/E30 -> 1.3125
B31: História | C31: Amambai | D31: Mestrado Profissional em Rede | E31: 26 | F31: 18 | G31: 0.6923076923
B32: Letras | C32: Dourados | D32: Mestrado Profissional em Rede | E32: 10 | F32: 6 | G32: 0.6
B33: Letras | C33: Campo Grande | D33: Mestrado Profissional em Rede | E33: 25 | F33: 9 | G33: 0.36
B34: Matemática | C34: Dourados | D34: Mestrado Profissional em Rede | E34: 3 | F34: 3 | G34: 1
B35: Total Mestrado profissional | E35: =SUM(E28:E34) -> 110 | F35: =SUM(F28:F34) -> 303 | G35: =F35/E35 -> 2.754545455
B36: Total Mestrado (mestrado acadêmico + profissional) | E36: =E27+E35 -> 276 | F36: =F27+F35 -> 585 | G36: 2.119565217
B37: Agronomia: Produção Vegetal | C37: Aquidauana | D37: Doutorado Acadêmico | E37: 10 | F37: 11 | G37: 1.1
B38: Recursos Naturais | C38: Dourados | D38: Doutorado Acadêmico | E38: 15 | F38: 20 | G38: 1.333333333
B39: Total Doutorado | E39: =SUM(E37:E38) -> 25 | F39: =SUM(F37:F38) -> 31 | G39: 1.24
B40: Total geral (mestrado + doutorado) | E40: =E36+E39 -> 301 | F40: =F36+F39 -> 616 | G40: 2.046511628
B41: *Não abriu processo seletivo até o momento.
B43: Fonte: Financeiro/Sigpós 2022

Sheet demanda_lato
B11: Objetivo: Apresentar a relação candidato x vaga, representando a procura pelos cursos de especialização
B13: Fórmula de cálculo: DPPGr = NI/NV
B14: NI é nº de candidatos inscritos no processo seletivo da especialização
B15: NV é nº de vagas no processo seletivo da especialização
B18: Quadro - Número de vagas (V) e inscritos (I) nos processos seletivos nos Cursos de Pós-graduação Lato Sensu*
B19: Curso | C19: Unidade Universitária/Polo | D19: Turma 2022 | F19: Relação candidato x vaga
D20: V | E20: I
B21: Direitos Difusos e Coletivos | C21: Dourados | D21: 0 | E21: 0
B22: Gestão do Turismo | C22: Campo Grande | D22: 30 | E22: 55 | F22: =E22/D22 -> 1.833333333
B23: Residência Multiprofissional em Saúde da Família | C23: Campo Grande | D23: 0 | E23: 0
B24: Residência Multiprofissional em Saúde da Família (turma 2) | C24: Campo Grande | D24: 12 | E24: 161 | F24: =E24/D24 -> 13.41666667
B25: Gestão Pública | C25: Maracaju | D25: 0 | E25: 0
B26: Direito e Vulnerabilidade | C26: Naviraí | D26: 0 | E26: 0
B27: Direitos Humanos | C27: Paranaíba | D27: 20 | E27: 90 | F27: =E27/D27 -> 4.5
B28: Políticas Públicas, Cultura e Sociedade | C28: Paranaíba | D28: 0 | E28: 0
B29: Total Especialização | D29: =SUM(D21:D28) -> 62 | E29: =SUM(E21:E28) -> 306 | F29: =E29/D29 -> 4.935483871
B30: Fonte: Financeiro/Sigpós 2022
B32: *Demais cursos não abriram processos seletivos até o momento.

Sheet Nota CAPES
B11: Objetivo: Informar a notas CAPES dos Programas de Pós-Graduação stricto sensu
B14: Quadro – Histórico da nota CAPES dos Programas de pós-graduação stricto sensu
B15: Curso | C15: Nível | D15: Unidade Universitária | E15: Avaliação
E16: 2009 | F16: 2010 | G16: 2011 | H16: 2014 | I16: 2013 | J16: 2015 | K16: 2016 | L16: 2017 | M16: 2018 | N16: 2019 | O16: 2020 | P16: 2021
B17: Agronomia: Produção Vegetal | C17: Mestrado/Doutorado Acadêmico | D17: Aquidauana | E17: 3 | G17: 3 | H17: 3 | K17: 4 | L17: 4 | M17: 4 | N17: 4 | O17: 4 | P17: 4
B18: Agronomia: Sustentabilidade na Agricultura | C18: Mestrado Acadêmico | D18: Cassilândia | H18: 3 | L18: 3 | M18: 3 | N18: 3 | O18: 3 | P18: 3
B19: Desenvolvimento Regional e de Sistemas Produtivos | C19: Mestrado Acadêmico | D19: Ponta Porã | H19: 3 | L19: 3 | M19: 3 | N19: 3 | O19: 3 | P19: 3
B20: Educação: Educação, Linguagem e Sociedade | C20: Mestrado Acadêmico | D20: Paranaíba | G20: 3 | H20: 3 | L20: 3 | M20: 3 | N20: 3 | O20: 3 | P20: 3
B21: Zootecnia: Produção Animal no Cerrado Pantanal | C21: Mestrado Acadêmico | D21: Aquidauana | F21: 3 | J21: 3 | L21: 3 | M21: 3 | N21: 3 | O21: 3 | P21: 3
B22: Letras: Língua e Literatura | C22: Mestrado Acadêmico | D22: Campo Grande | G22: 3 | J22: 3 | L22: 3 | M22: 3 | N22: 3 | O22: 3 | P22: 3
B23: Recursos Naturais | C23: Mestrado/Doutorado Acadêmico | D23: Dourados | F23: 3 | J23: 4 | L23: 4 | M23: 4 | N23: 4 | O23: 4 | P23: 4
B24: Educação | C24: Mestrado Profissional | D24: Campo Grande | H24: 3 | L24: 4 | M24: 4 | N24: 4 | O24: 4 | P24: 4
B25: Educação Científica e Matemática | C25: Mestrado Profissional | D25: Dourados | K25: 3 | L25: 3 | M25: 3 | N25: 3 | O25: 3 | P25: 3
B26: Ensino em Saúde | C26: Mestrado Profissional | D26: Dourados | H26: 3 | L26: 3 | M26: 3 | N26: 3 | O26: 3 | P26: 3
B27: História | C27: Mestrado Profissional em Rede | D27: Amambai | I27: 4 | L27: 4 | M27: 4 | N27: 4 | O27: 4 | P27: 4
B28: Letras | C28: Mestrado Profissional em Rede | D28: Dourados | I28: 4 | L28: 4 | M28: 4 | N28: 4 | O28: 4 | P28: 4
B29: Letras | C29: Mestrado Profissional em Rede | D29: Campo Grande
B30: Matemática | C30: Mestrado Profissional em Rede | D30: Dourados | G30: 3 | J30: 5 | L30: 5 | M30: 5 | N30: 5 | O30: 5 | P30: 5
B31: Fonte : CAPES, julho/2022
B33: Aguardando resultado da Avaliação Quadrienal

Sheet Internacionalização
B11: Objetivo: Quantificar o número de discentes estrangeiros matriculados nos Programas de Pós-graduação Stricto Sensu da UEMS
B13: Quadro – Alunos estrangeiros regularmente matriculados em Programas de Pós-graduação stricto sensu
B14: Curso | C14: Nível | D14: Unidade Universitária | E14: 2019 | F14: País de origem | G14: 2020 | H14: País de origem | I14: 2021 | J14: País de origem | K14: 2022 | L14: País de origem
B16: Agronomia: Produção Vegetal | C16: Doutorado Acadêmico | D16: Aquidauana | E16: - | F16: - | G16: - | H16: - | I16: - | J16: - | K16: - | L16: -
B17: Agronomia: Produção Vegetal | C17: Mestrado Acadêmico | D17: Aquidauana | E17: - | F17: - | G17: 1 | H17: Haiti | I17: 1 | J17: Haiti | K17: 1 | L17: Haiti
B18: Agronomia: Sustentabilidade na Agricultura | C18: Mestrado Acadêmico | D18: Cassilândia | E18: - | F18: - | G18: 1 | H18: Honduras | I18: 1 | J18: Honduras | K18: - | L18: -
B19: Desenvolvimento Regional e de Sistemas Produtivos | C19: Mestrado Acadêmico | D19: Ponta Porã | E19: - | F19: - | G19: 1 | H19: Cabo Verde | I19: 1 | J19: Cabo Verde | K19: 1 | L19: Cabo Verde
B20: Educação: Educação, Linguagem e Sociedade | C20: Mestrado Acadêmico | D20: Paranaíba | E20: - | F20: - | G20: 1 | H20: Peru | I20: 1 | J20: Peru | K20: - | L20: -
B21: Zootecnia: Produção Animal no Cerrado Pantanal | C21: Mestrado Acadêmico | D21: Aquidauana | E21: - | F21: - | G21: - | H21: - | I21: 1 | J21: Guatemala | K21: 2 | L21: Guatemala e Moçambique
B22: Letras: Língua e Literatura | C22: Mestrado Acadêmico | D22: Campo Grande | E22: 1 | F22: Paraguai | G22: - | H22: - | I22: - | J22: - | K22: 1 | L22: Canadá
B23: Recursos Naturais | C23: Doutorado Acadêmico | D23: Dourados | E23: 1 | F23: Benin | G23: 2 | H23: Guatemala e Venezuela | I23: - | J23: - | K23: 2 | L23: Guatemala e Venezuela
B24: Recursos Naturais | C24: Mestrado Acadêmico | D24: Dourados | E24: 1 | F24: Guatemala | G24: - | H24: - | I24: - | J24: - | K24: - | L24: -
B25: Educação | C25: Mestrado Profissional | D25: Campo Grande | E25: - | F25: - | G25: - | H25: - | I25: - | J25: - | K25: - | L25: -
B26: Educação Científica e Matemática | C26: Mestrado Profissional | D26: Dourados | E26: 1 | F26: Honduras | G26: - | H26: - | I26: - | J26: - | K26: - | L26: -
B27: Ensino em Saúde | C27: Mestrado Profissional | D27: Dourados | E27: 1 | F27: Peru | G27: - | H27: - | I27: 1 | J27: Moçambique | K27: 1 | L27: Moçambique
B28: História | C28: Mestrado Profissional em Rede | D28: Amambai | E28: - | F28: - | G28: - | H28: - | I28: - | J28: - | K28: - | L28: -
B29: Letras | C29: Mestrado Profissional em Rede | D29: Dourados | E29: - | F29: - | G29: - | H29: - | I29: - | J29: - | K29: - | L29: -
B30: Letras | C30: Mestrado Profissional em Rede | D30: Campo Grande | E30: - | F30: - | G30: - | H30: - | I30: - | J30: - | K30: - | L30: -
B31: Matemática | C31: Mestrado Profissional em Rede | D31: Dourados | E31: - | F31: - | G31: - | H31: - | I31: - | J31: - | K31: - | L31: -
B32: Total | E32: 5 | F32: - | G32: 6 | H32: - | I32: 6 | K32: 8
B33: Fonte: Sigpós julho/2022.

Sheet Apoio_publicacao
B11: Objetivo: Indicar a demanda recebida e a demanda atendida referente a concessão de recursos financeiros à docentes para apoio a publicação
B13: Quadro - Demanda recebida e demanda atendida referente a Edital de Apoio a Publicação, de docentes solicitantes com vínculos com Programas de Pós-graduação, ordenados por área da CAPES
B15: Programas | C15: Nível | D15: Unidade Universitária | E15: Área na CAPES | F15: Edital 05/2020 | H15: Edital 10/2021 | J15: Edital 060/2022
F16: Demanda Recebida | G16: Demanda Atendida | H16: Demanda Recebida | I16: Demanda Atendida | J16: Demanda Recebida | K16: Demanda Atendida
B17: Recursos Naturais | C17: Mestrado/Doutorado Acadêmico | D17: Dourados | E17: Ciências Ambientais | F17: 53 | G17: 53 | H17: 33 | I17: 33 | J17: 1 | K17: 1
B18: Total por Área | F18: =F17 -> 53 | G18: =G17 -> 53 | H18: 33 | I18: 33 | J18: 1 | K18: 1
B19: Agronomia: Produção Vegetal | C19: Mestrado/Doutorado Acadêmico | D19: Aquidauana | E19: Ciências Agrárias | F19: 23 | G19: 21 | H19: 18 | I19: 18 | J19: 5 | K19: 4
B20: Agronomia: Sustentabilidade na Agricultura | C20: Mestrado Acadêmico | D20: Cassilândia | E20: Ciências Agrárias | F20: 20 | G20: 20 | H20: 15 | I20: 15 | J20: 16 | K20: 15
B21: Total por Área | F21: 43 | G21: 41 | H21: 33 | I21: 33 | J21: =SUM(J19:J20) -> 21 | K21: =SUM(K19:K20) -> 19
B22: Educação | C22: Mestrado Profissional | D22: Campo Grande | E22: Educação | F22: 27 | G22: 25 | H22: 16 | I22: 16 | J22: 5 | K22: 3
B23: Educação: Educação, Linguagem e Sociedade | C23: Mestrado Acadêmico | D23: Paranaíba | E23: Educação | F23: 18 | G23: 18 | H23: 24 | I23: 22
B24: Total por Área | F24: 45 | G24: 43 | H24: 40 | I24: 38 | J24: =SUM(J22) -> 5 | K24: =SUM(K22) -> 3
B25: Educação Científica e Matemática | C25: Mestrado Profissional | D25: Dourados | E25: Ensino | F25: 1 | G25: 1 | H25: 7 | I25: 3 | J25: 1 | K25: 1
B26: Ensino em Saúde | C26: Mestrado Profissional | D26: Dourados | E26: Ensino | F26: 12 | G26: 12 | H26: 3 | I26: 3
B27: Total por Área | F27: 13 | G27: 13 | H27: 10 | I27: 6 | J27: =SUM(J25) -> 1 | K27: =SUM(K25) -> 1
B28: História | C28: Mestrado Profissional em Rede | D28: Amambai | E28: História | F28: 13 | G28: 13 | H28: 9 | I28: 9 | J28: 4 | K28: 3
B29: Total por Área | F29: =F28 -> 13 | G29: =G28 -> 13 | H29: 9 | I29: 9 | J29: 4 | K29: 3
B30: Letras: Língua e Literatura | C30: Mestrado Acadêmico | D30: Campo Grande | E30: Linguística e Literatura | F30: 19 | G30: 18 | H30: 17 | I30: 17 | J30: 2 | K30: 2
B31: Letras | C31: Mestrado Profissional em Rede | D31: Dourados | E31: Linguística e Literatura | H31: 9 | I31: 7
B32: Letras | C32: Mestrado Profissional em Rede | D32: Campo Grande | E32: Linguística e Literatura | H32: - | I32: -
B33: Total por Área | F33: =SUM(F30:F32) -> 19 | G33: =SUM(G30:G32) -> 18 | H33: 26 | I33: 24 | J33: 2 | K33: 2
B34: Matemática | C34: Mestrado Profissional em Rede | D34: Dourados | E34: Matemática/Probabilidade e Estatística | F34: 5 | G34: 5 | H34: 2 | I34: 1
B35: Total por Área | F35: =F34 -> 5 | G35: =G34 -> 5 | H35: 2 | I35: 1 | J35: 0 | K35: 0
B36: Desenvolvimento Regional e de Sistemas Produtivos | C36: Mestrado Acadêmico | D36: Ponta Porã | E36: Planejamento Urbano e Regional/Demografia | F36: 11 | G36: 11 | H36: 6 | I36: 5 | J36: 3 | K36: 3
B37: Total por Área | F37: =F36 -> 11 | G37: =G36 -> 11 | H37: 6 | I37: 5 | J37: 3 | K37: 3
B38: Zootecnia: Produção Animal no Cerrado Pantanal | C38: Mestrado Acadêmico | D38: Aquidauana | E38: Zootecnia e Recursos Pesqueiro | F38: 18 | G38: 17 | H38: 4 | I38: 4 | J38: 2 | K38: 2
B39: Total por Área | F39: =F38 -> 18 | G39: =G38 -> 17 | H39: 4 | I39: 4 | J39: 2 | K39: 2
B40: Total Geral | F40: =SUM(F21,F24,F27,F29,F33,F35,F37,F39,F18) -> 220 | G40: =SUM(G21,G24,G27,G29,G33,G35,G37,G39,G18) -> 214 | H40: 163 | I40: 153 | J40: 39 | K40: 34
B41: Fonte: Financeiro PROPPI julho/2022
B44: Quadro - Demanda recebida e demanda atendida referente a Edital de Apoio a Publicação, de docentes solicitantes com vínculos com Cursos de Graduação da UEMS - ordenados por área da CAPES
B46: Curso de Graduação | C46: Unidade Universitária | D46: Edital 05/2020 | F46: Edital 10/2021 | H46: Edital 060/2022
D47: Demanda Recebida | E47: Demanda Atendida | F47: Demanda Recebida | G47: Demanda Atendida | H47: Demanda Recebida | I47: Demanda Atendida
B48: Agronomia | C48: Aquidauna | D48: - | E48: - | F48: - | G48: - | H48: 3 | I48: 3
B49: Agronomia | C49: Cassilândia | D49: - | E49: - | F49: - | G49: - | H49: 1 | I49: 1
B50: Artes Cênicas, Teatro e Dança | C50: Campo Grande | D50: - | E50: - | F50: 5 | G50: 4 | H50: - | I50: -
B51: Ciências Sociais | C51: Paranaíba | D51: - | E51: - | F51: 6 | G51: 6 | H51: - | I51: -
B52: Ciências Sociais | C52: Amambaí | D52: - | E52: - | F52: 1 | G52: 1 | H52: - | I52: -
B53: Ciências Biológicas | C53: Mundo Novo | D53: - | E53: - | F53: 11 | G53: 11 | H53: 1 | I53: 1
B54: Direito | C54: Dourados | D54: - | E54: - | F54: 4 | G54: 4 | H54: - | I54: -
B55: Direito | C55: Naviraí | D55: - | E55: - | F55: 5 | G55: 5 | H55: 9 | I55: 9
B56: Direito | C56: Paranaíba | D56: - | E56: - | F56: 17 | G56: 17 | H56: 1 | I56: 1
B57: Pedagogia | C57: Paranaíba | D57: - | E57: - | F57: 3 | G57: 3 | H57: - | I57: -
B58: Pedagogia EAD | C58: Dourados | D58: - | E58: - | F58: - | G58: - | H58: 2 | I58: 2
B59: Letras | C59: Campo Grande | D59: - | E59: - | F59: 2 | G59: 2 | H59: - | I59: -
B60: Letras | C60: Dourados | D60: - | E60: - | F60: 2 | G60: 2 | H60: - | I60: -
B61: Letras | C61: Jardim | D61: - | E61: - | F61: 4 | G61: 2 | H61: - | I61: -
B62: Geografia | C62: Campo Grande | D62: - | E62: - | F62: 13 | G62: 13 | H62: - | I62: -
B63: Geografia | C63: Jardim | D63: - | E63: - | F63: 1 | G63: 1 | H63: 4 | I63: 1
B64: Ciências Econômicas | C64: Ponta Porã | D64: - | E64: - | F64: 1 | G64: 1 | H64: - | I64: -
B65: Engenharia Ambiental e Sanitária | C65: Dourados | D65: - | E65: - | F65: 1 | G65: 1 | H65: 1 | I65: 1
B66: Engenharia Alimentos | C66: Naviraí | D66: - | E66: - | F66: - | G66: - | H66: 4 | I66: 4
B67: Zootecnia | C67: Aquidauana | D67: - | E67: - | F67: 2 | G67: 2 | H67: - | I67: -
B68: Turismo | C68: Campo Grande | D68: - | E68: - | F68: 6 | G68: 6 | H68: - | I68: -
B69: Turismo | C69: Dourados | D69: - | E69: - | F69: 2 | G69: 2 | H69: 1 | I69: 1
B70: Medicina | C70: Campo Grande | D70: - | E70: - | F70: 7 | G70: 7 | H70: 2 | I70: 2
B71: Total Geral | F71: =SUM(F48:F70) -> 93 | G71: =SUM(G48:G70) -> 90 | H71: 29 | I71: 26
B73: Quadro – Síntese de demanda recebida e atendida por Edital
B74: Edital 05/2020 | D74: Edital 10/2021 | F74: Edital 060/2022
B75: Demanda Recebida | C75: Demanda Atendida | D75: Demanda Recebida | E75: Demanda Atendida | F75: Demanda Recebida | G75: Demanda Atendida
B76: 220 | C76: 214 | D76: 256 | E76: 243 | F76: =SUM(H71,J40) -> 68 | G76: =SUM(I71,K40) -> 60

Sheet Historico_bolsas
B11: Objetivo: Apresentar a série histórica envolvendo dados referentes a média de bolsas utilizadas pelos programas de pós-graduação
B13: Quadro – Média de utilização de bolsas CAPES* concedidas aos Programas de Pós-graduação Stricto Sensu
B14: Curso | C14: Nível | D14: 2016 | E14: 2017 | F14: 2018 | G14: 2019 | H14: 2020 | I14: 2021 | J14: 2022**
B15: Agronomia: Produção Vegetal (Aquidauana) | C15: Mestrado Acadêmico | D15: 25 | E15: 25 | F15: 25 | G15: 25 | H15: 23 | I15: 15 | J15: =96/7 -> 13.71428571
B16: Agronomia: Sustentabilidade na Agricultura (Cassilândia) | C16: Mestrado Acadêmico | D16: 5 | E16: 5 | F16: 5 | G16: 5 | H16: 5 | I16: 5 | J16: =40/7 -> 5.714285714
B17: Desenvolvimento Regional e de Sistemas Produtivos (Ponta Porã) | C17: Mestrado Acadêmico | D17: 4 | E17: 4 | F17: 4 | G17: 4 | H17: 4 | I17: 4 | J17: =30/7 -> 4.285714286
B18: Educação: Educação, Linguagem e Sociedade Paranaíba) | C18: Mestrado Acadêmico | D18: 8 | E18: 8 | F18: 8 | G18: 7 | H18: 7 | I18: 6 | J18: =38/7 -> 5.428571429
B19: Zootecnia: Produção Animal no Cerrado Pantanal (Aquidauana) | C19: Mestrado Acadêmico | D19: 14 | E19: 14 | F19: 14 | G19: 14 | H19: 14 | I19: 6 | J19: =42/7 -> 6
B20: Letras: Língua e Literatura (Campo Grande) | C20: Mestrado Acadêmico | D20: 9 | E20: 9 | F20: 9 | G20: 9 | H20: 6 | I20: 6 | J20: =97/7 -> 13.85714286
B21: Recursos Naturais (Dourados) | C21: Mestrado Acadêmico | D21: 20 | E21: 20 | F21: 20 | G21: 20 | H21: 20 | I21: 15 | J21: =32/7 -> 4.571428571
B22: Total Mestrado | D22: 85 | E22: 85 | F22: 85 | G22: 84 | H22: 79 | I22: 57 | J22: =SUM(J15:J21) -> 53.57142857
B23: Agronomia: Produção Vegetal (Aquidauana) | C23: Doutorado Acadêmico | D23: 2 | E23: 2 | F23: 2 | G23: 4 | H23: 6 | I23: 8 | J23: =76/7 -> 10.85714286
B24: Recursos Naturais (Dourados) | C24: Doutorado Acadêmico | D24: 9 | E24: 9 | F24: 9 | G24: 10 | H24: 11 | I24: 13 | J24: =116/7 -> 16.57142857
B25: Total Doutorado | D25: 11 | E25: 11 | F25: 11 | G25: 14 | H25: 17 | I25: 21 | J25: =SUM(J23:J24) -> 27.42857143
B26: Total geral (mestrado e doutorado) | D26: 96 | E26: 96 | F26: 96 | G26: 98 | H26: 96 | I26: 78 | J26: =SUM(J25,J22) -> 81
B27: Fonte: Financeiro PROPPI julho 2022
B28: *bolsa CAPES concedida institucionalmente à UEMS, geridas pela instituição
B29: OBS: A redução gradativa das bolsas ocorreu devido ao novo modelo de alocação de bolsas de mestrado e doutorado, aos cursos de pós-graduação stricto sensu, informado pela Coordenação de Aperfeiçoamento de Pessoal de Nível Superior (CAPES) nas portarias nº18, nº20 e nº21 publicadas em fevereiro de 2020. Para maiores esclarecimentos sobre o novo modelo de distribuição de bolsas segue o link da página da CAPES (https://www.gov.br/capes/pt-br/assuntos/noticias/capes-esclarece-modelo-de-concessao-de-bolsas)
B34: Quadro – Média de utilização de Bolsas Institucionais (PIBAP) de ampla concorrência, concedidas aos Programas de Pós-graduação Stricto Sensu
B35: Curso | C35: Nível | D35: 2016 | E35: 2017 | F35: 2018 | G35: 2019 | H35: 2020 | I35: 2021 | J35: 2022**
B36: Agronomia: Produção Vegetal (Aquidauana) | C36: Mestrado Acadêmico | D36: 7 | E36: 8 | F36: 9 | G36: 8 | H36: 5 | I36: 6 | J36: 7
B37: Agronomia: Sustentabilidade na Agricultura (Cassilândia) | C37: Mestrado Acadêmico | D37: 8 | E37: 10 | F37: 10 | G37: 10 | H37: 9 | I37: 8 | J37: 7
B38: Desenvolvimento Regional e de Sistemas Produtivos (Ponta Porã) | C38: Mestrado Acadêmico | D38: 6 | E38: 7 | F38: 8 | G38: 8 | H38: 8 | I38: 8 | J38: 6
B39: Educação: Educação, Linguagem e Sociedade (Paranaíba) | C39: Mestrado Acadêmico | D39: 7 | E39: 10 | F39: 10 | G39: 10 | H39: 11 | I39: 17 | J39: 12
B40: Letras: Língua e Literatura (Campo Grande) | C40: Mestrado Acadêmico | D40: 10 | E40: 10 | F40: 10 | G40: 9 | H40: 9 | I40: 8 | J40: 10
B41: Recursos Naturais (Dourados) | C41: Mestrado Acadêmico | D41: 6 | E41: 3 | F41: 2 | G41: 3 | H41: 7 | I41: 7 | J41: 8
B42: Zootecnia: Produção Animal no Cerrado Pantanal (Aquidauana) | C42: Mestrado Acadêmico | D42: 8 | E42: 9 | F42: 10 | G42: 9 | H42: 9 | I42: 10 | J42: 12
B43: Educação (Campo Grande) | C43: Mestrado Profissional | D43: 7 | E43: 9 | F43: 9 | G43: 8 | H43: 9 | I43: 9 | J43: 8
B44: Educação Científica e Matemática (Dourados) | C44: Mestrado Profissional | D44: 8 | E44: 10 | F44: 10 | G44: 10 | H44: 9 | I44: 9 | J44: 11
B45: Ensino em Saúde (Dourados) | C45: Mestrado Profissional | D45: 4 | E45: 11 | F45: 9 | G45: 9 | H45: 8 | I45: 6 | J45: 3
B46: História (Amambai) | C46: Mestrado Profissional em Rede | D46: 0 | E46: 9 | F46: 10 | G46: 10 | H46: 9 | I46: 9 | J46: 10
B47: Letras (Dourados) | C47: Mestrado Profissional em Rede | D47: 6 | E47: 8 | F47: 9 | G47: 9 | H47: 3 | I47: 1 | J47: 1
B48: Letras (Campo Grande) | C48: Mestrado Profissional em Rede | D48: 5 | E48: 4 | F48: 10 | G48: 9 | H48: 7 | I48: 2 | J48: 1
B49: Matemática (Dourados) | C49: Mestrado Profissional em Rede | D49: 0 | E49: 5 | F49: 10 | G49: 9 | H49: 4 | I49: 6 | J49: 9
B50: Total Mestrado (acadêmico e profissional) | D50: 82 | E50: 113 | F50: 126 | G50: 125 | H50: 107 | I50: 106 | J50: =SUM(J36:J49) -> 105
B51: Agronomia: Produção Vegetal (Aquidauana) | C51: Doutorado Acadêmico | D51: 8 | E51: 8 | F51: 8 | G51: 19 | H51: 16 | I51: 14 | J51: 15
B52: Recursos Naturais (Dourados) | C52: Doutorado Acadêmico | D52: 9 | E52: 9 | F52: 9 | G52: 17 | H52: 16 | I52: 12 | J52: 11
B53: Total Doutorado | D53: 17 | E53: 17 | F53: 17 | G53: 36 | H53: 32 | I53: 26 | J53: =SUM(J51:J52) -> 26
B54: Total geral (mestrado e doutorado) | D54: 99 | E54: 130 | F54: 143 | G54: 161 | H54: 139 | I54: 132 | J54: =SUM(J53,J50) -> 131
B55: Fonte: Financeiro PROPPI julho 2022
B58: Quadro – Síntese dos valores investidos por total anual de utilização (cálculo a partir da média mensal).
B59: Programas | C59: 2016 | D59: 2017 | E59: 2018 | F59: 2019
B60: Média mensal Mestrado (acadêmico e profissional) | C60: 61500 | D60: 84750 | E60: 94500 | F60: 93750
B61: Anual (Mestrado (acadêmico e profissional)) | C61: 738000 | D61: 1017000 | E61: 1134000 | F61: 1125000
B62: Média Mensal Doutorado | C62: 18700 | D62: 18700 | E62: 18700 | F62: 39600
B63: Anual Doutorado | C63: 224400 | D63: 224400 | E63: 224400 | F63: 475200
B64: Recursos totais anuais investidos | C64: 962400 | D64: 1241400 | E64: 1358400 | F64: 1600200
B65: Total geral no período | D65: 5162400
B66: OBS: a Partir de 2020 considera-se a quantidade e não mais a média para informar os valores investidos na bolsa PIBAP, observar síntese abaixo
B68: Síntese do número e dos recursos investidos nas bolsas PIBAP Ampla Concorrência (AC) e Ações Afirmativas (AAF)
B69: Curso | C69: 2020 | E69: 2021 | G69: 2022**
C70: Quantidade | D70: Recursos investidos | E70: Quantidade | F70: Recursos investidos | G70: Quantidade | H70: Recursos investidos
B71: Mestrado (bolsa AC) | C71: 1396 | D71: 1047000 | E71: 1329 | F71: 996750 | G71: 734 | H71: =G71*750 -> 550500
B72: Doutorado (bolsa AC) | C72: 409 | D72: 449900 | E72: 354 | F72: 389400 | G72: 178 | H72: =G72*1100 -> 195800
B73: Mestrado (bolsa AAF) | C73: 6 | D73: 4500 | E73: 44 | F73: 33000 | G73: 41 | H73: =G73*750 -> 30750
B74: Doutorado (bolsa AAF) | C74: - | D74: - | E74: - | F74: - | G74: - | H74: -
B75: Totais | C75: 1811 | D75: 1501400 | E75: 1727 | F75: 1419150 | G75: =SUM(G71:G73) -> 953 | H75: =SUM(H71:H73) -> 777050
B76: OBS: a Partir de 2020 considera-se a quantidade e não mais a média para informar os valores investidos na bolsa PIBAP
B78: **Dados referem-se ao 1º semestre de 2022

Sheet Graficos_bolsas
B12: Evolução do número de bolsas PIBAP de ampla concorrência por total geral, mestrado e doutorado (a partir da média de utilização) | K12: Evolução do número de bolsas PIBAP de ampla concorrência mestrado e doutorado (a partir da média de utilização)
B25: ** 2022 dados do 1º semestre
B28: Valores investidos por total anual de utilização (cálculo a partir da média mensal de bolsas PIBAP por ampla concorrência) | K28: Número e recursos investidos nas bolsas PIBAP Ampla Concorrência (AC) e Ações Afirmativas (AAF)
B42: OBS: a Partir de 2020 considera-se a quantidade e não mais a média para informar os valores investidos na bolsa PIBAP, observar síntese abaixo
B47: Evolução do número de bolsas CAPES nos mestrados acadêmicos da UEMS (por média mensal de utilização) | K47: Evolução do número de bolsas CAPES nos doutorado (a partir da média de utilização)
B65: Média de utilização de bolsas PIBAP de ampla concorrência nos mestrados acadêmicos e profissionais da UEMS | N65: Média mensal de utilização de bolsas PIBAP de ampla concorrência nos doutorados da UEMS

Sheet Detalhamento_bolsa_CAPES_PIBAP
B11: Objetivo: Apresentar a quantidade mensal de bolsas PIBAP e CAPES, e valor total investido, referentes a programas de Pós-Graduação stricto sensu
B13: Quadro – Quantidades e valores investidos referentes a bolsas PIBAP de ampla concorrência (AC) e Ações Afirmativas (AAF), no ano de 2022 - por mês
B14: Curso | C14: Nível | D14: Unidade Universitária | E14: Janeiro | G14: Fevereiro | I14: Março | K14: Abril | M14: Maio | O14: Junho | Q14: Julho | S14: Agosto | U14: Setembro | W14: Outubro | Y14: Novembro | AA14: Dezembro | AC14: Total AC por curso | AD14: Total AAF por curso | AE14: Valor investido*
E15: AC | F15: AAF | G15: AC | H15: AAF | I15: AC | J15: AAF | K15: AC | L15: AAF | M15: AC | N15: AAF | O15: AC | P15: AAF | Q15: AC | R15: AAF | S15: AC | T15: AAF | U15: AC | V15: AAF | W15: AC | X15: AAF | Y15: AC | Z15: AAF | AA15: AC | AB15: AAF
B16: Agronomia: Produção Vegetal | C16: Mestrado Acadêmico | D16: Aquidauana | E16: 8 | F16: 0 | G16: 8 | H16: 0 | I16: 8 | J16: 0 | K16: 10 | L16: 0 | M16: 10 | N16: 0 | O16: 4 | P16: 0 | Q16: 4 | R16: 0 | AC16: =E16+G16+I16+K16+M16+O16+Q16+S16+U16+W16+Y16+AA16 -> 52 | AD16: =F16+H16+J16+L16+N16+P16+R16+T16+V16+X16+Z16+AB16 -> 0 | AE16: =SUM(AC16+AD16)*750 -> 39000
B17: Agronomia: Sustentabilidade na Agricultura | C17: Mestrado Acadêmico | D17: Cassilândia | E17: 10 | F17: 0 | G17: 10 | H17: 0 | I17: 8 | J17: 0 | K17: 6 | L17: 0 | M17: 6 | N17: 0 | O17: 6 | P17: 0 | Q17: 4 | R17: 0 | AC17: =E17+G17+I17+K17+M17+O17+Q17+S17+U17+W17+Y17+AA17 -> 50 | AD17: 0 | AE17: =SUM(AC17+AD17)*750 -> 37500
B18: Desenvolvimento Regional e de Sistemas Produtivos | C18: Mestrado Acadêmico | D18: Ponta Porã | E18: 8 | F18: 0 | G18: 8 | H18: 0 | I18: 8 | J18: 0 | K18: 8 | L18: 0 | M18: 4 | N18: 0 | O18: 4 | P18: 0 | Q18: 4 | R18: 0 | AC18: 44 | AD18: 0 | AE18: 33000
B19: Educação: Educação, Linguagem e Sociedade | C19: Mestrado Acadêmico | D19: Paranaíba | E19: 16 | F19: 5 | G19: 16 | H19: 5 | I19: 11 | J19: 5 | K19: 11 | L19: 5 | M19: 9 | N19: 5 | O19: 11 | P19: 5 | Q19: 12 | R19: 5 | AC19: 86 | AD19: 35 | AE19: 90750
B20: Letras: Língua e Literatura | C20: Mestrado Acadêmico | D20: Campo Grande | E20: 10 | F20: 0 | G20: 10 | H20: 0 | I20: 10 | J20: 0 | K20: 10 | L20: 0 | M20: 8 | N20: 0 | O20: 10 | P20: 0 | Q20: 10 | R20: 0 | AC20: 68 | AD20: 0 | AE20: 51000
B21: Recursos Naturais | C21: Mestrado Acadêmico | D21: Dourados | E21: 9 | F21: 0 | G21: 8 | H21: 0 | I21: 6 | J21: 0 | K21: 8 | L21: 0 | M21: 8 | N21: 0 | O21: 8 | P21: 0 | Q21: 6 | R21: 0 | AC21: 53 | AD21: 0 | AE21: 39750
B22: Zootecnia: Produção Animal no Cerrado Pantanal | C22: Mestrado Acadêmico | D22: Aquidauana | E22: 8 | F22: 0 | G22: 6 | H22: 0 | I22: 7 | J22: 0 | K22: 16 | L22: 0 | M22: 16 | N22: 0 | O22: 16 | P22: 0 | Q22: 16 | R22: 0 | AC22: 85 | AD22: 0 | AE22: 63750
B23: Educação | C23: Mestrado Profissional | D23: Campo Grande | E23: 9 | F23: 0 | G23: 9 | H23: 0 | I23: 9 | J23: 0 | K23: 8 | L23: 0 | M23: 8 | N23: 0 | O23: 6 | P23: 0 | Q23: 10 | R23: 0 | AC23: 59 | AD23: 0 | AE23: 44250
B24: Educação Científica e Matemática | C24: Mestrado Profissional | D24: Dourados | E24: 11 | F24: 0 | G24: 11 | H24: 0 | I24: 11 | J24: 0 | K24: 11 | L24: 0 | M24: 11 | N24: 0 | O24: 10 | P24: 0 | Q24: 10 | R24: 0 | AC24: 75 | AD24: 0 | AE24: 56250
B25: Ensino em Saúde | C25: Mestrado Profissional | D25: Dourados | E25: 6 | F25: 0 | G25: 6 | H25: 0 | I25: 2 | J25: 0 | K25: 2 | L25: 0 | M25: 2 | N25: 0 | O25: 2 | P25: 0 | Q25: 2 | R25: 0 | AC25: 22 | AD25: 0 | AE25: 16500
B26: História | C26: Mestrado Profissional em Rede | D26: Amambai | E26: 10 | F26: 0 | G26: 10 | H26: 0 | I26: 10 | J26: 0 | K26: 10 | L26: 0 | M26: 9 | N26: 2 | O26: 9 | P26: 2 | Q26: 9 | R26: 2 | AC26: 67 | AD26: 6 | AE26: 54750
B27: Letras | C27: Mestrado Profissional em Rede | D27: Dourados | E27: 1 | F27: 0 | G27: 1 | H27: 0 | I27: 1 | J27: 0 | K27: 1 | L27: 0 | M27: 1 | N27: 0 | O27: 1 | P27: 0 | Q27: 1 | R27: 0 | AC27: 7 | AD27: 0 | AE27: 5250
B28: Letras | C28: Mestrado Profissional em Rede | D28: Campo Grande | E28: 0 | F28: 0 | G28: 0 | H28: 0 | I28: 0 | J28: 0 | K28: 0 | L28: 0 | M28: 1 | N28: 0 | O28: 1 | P28: 0 | Q28: 1 | R28: 0 | AC28: 3 | AD28: 0 | AE28: 2250
B29: Matemática | C29: Mestrado Profissional em Rede | D29: Dourados | E29: 9 | F29: 0 | G29: 8 | H29: 0 | I29: 10 | J29: 0 | K29: 10 | L29: 0 | M29: 10 | N29: 0 | O29: 10 | P29: 0 | Q29: 6 | R29: 0 | AC29: 63 | AD29: 0 | AE29: 47250
B30: Total mensal (Mestrado acadêmico e profissional) | E30: =SUM(E16:E29) -> 115 | F30: =SUM(F16:F29) -> 5 | G30: 111 | H30: 5 | I30: 101 | J30: 5 | K30: 111 | L30: 5 | M30: 103 | N30: 7 | O30: 98 | P30: 7 | Q30: 95 | R30: 7 | AC30: 734 | AD30: 41 | AE30: 581250
B31: Agronomia: Produção Vegetal | C31: Doutorado Acadêmico | D31: Aquidauana | E31: 10 | F31: 0 | G31: 10 | H31: 0 | I31: 19 | J31: 0 | K31: 16 | L31: 0 | M31: 16 | N31: 0 | O31: 16 | P31: 0 | Q31: 16 | R31: 0 | AC31: 103 | AD31: 0 | AE31: =SUM(AC31+AD31)*1100 -> 113300
B32: Recursos Naturais | C32: Doutorado Acadêmico | D32: Dourados | E32: 5 | F32: 0 | G32: 4 | H32: 0 | I32: 10 | J32: 0 | K32: 18 | L32: 0 | M32: 16 | N32: 0 | O32: 10 | P32: 0 | Q32: 12 | R32: 0 | AC32: 75 | AD32: 0 | AE32: =SUM(AC32+AD32)*1100 -> 82500
B33: Total mensal Doutorado | E33: =SUM(E31:E32) -> 15 | F33: =SUM(F31:F32) -> 0 | G33: 14 | H33: 0 | I33: 29 | J33: 0 | K33: 34 | L33: 0 | M33: 32 | N33: 0 | O33: 26 | P33: 0 | Q33: 28 | R33: 0 | AC33: 178 | AD33: 0 | AE33: =SUM(AC33+AD33)*750 -> 133500
B34: Total mensal (Mestrado e Doutorado) | E34: =SUM(E30,E33) -> 130 | F34: =SUM(F30,F33) -> 5 | G34: 125 | H34: 5 | I34: 130 | J34: 5 | K34: 145 | L34: 5 | M34: 135 | N34: 7 | O34: 124 | P34: 7 | Q34: 123 | R34: 7 | AC34: 912 | AD34: 41 | AE34: =SUM(AC34+AD34)*1100 -> 1048300
B35: *Valor investido por Programa (mestrado +doutorado)
B36: Fonte: Financeiro PROPPI julho/2022
B38: Quadro – Quantidades e valores investidos referente a bolsas CAPES, no ano de 2022 - por mês
B39: Curso | C39: Nível | D39: Unidade Universitária | E39: Jan | G39: Fev | I39: Mar | K39: Abr | M39: Mai | O39: Jun | Q39: Jul | S39: Ago | U39: Set | W39: Out | Y39: Nov | AA39: Dez | AC39: Total | AE39: Valor investido
B40: Agronomia: Produção Vegetal | C40: Mestrado Acadêmico | D40: Aquidauana | E40: 14 | G40: 14 | I40: 14 | K40: 14 | M40: 14 | O40: 13 | Q40: 13 | AC40: =SUM(E40+G40+I40+K40+M40+O40+Q40+S40*U40+W40+Y40+AA40) -> 96 | AE40: =AC40*1500 -> 144000
B41: Agronomia: Sustentabilidade na Agricultura | C41: Mestrado Acadêmico | D41: Cassilândia | E41: 5 | G41: 5 | I41: 6 | K41: 6 | M41: 6 | O41: 6 | Q41: 6 | AC41: =SUM(E41+G41+I41+K41+M41+O41+Q41+S41*U41+W41+Y41+AA41) -> 40 | AE41: =AC41*1500 -> 60000
B42: Desenvolvimento Regional e de Sistemas Produtivos | C42: Mestrado Acadêmico | D42: Ponta Porã | E42: 3 | G42: 3 | I42: 4 | K42: 5 | M42: 5 | O42: 5 | Q42: 5 | AC42: 30 | AE42: 45000
B43: Educação: Educação, Linguagem e Sociedade | C43: Mestrado Acadêmico | D43: Paranaíba | E43: 6 | G43: 4 | I43: 4 | K43: 6 | M43: 6 | O43: 6 | Q43: 6 | AC43: 38 | AE43: 57000
B44: Letras: Língua e Literatura | C44: Mestrado Acadêmico | D44: Campo Grande | E44: 6 | G44: 6 | I44: 6 | K44: 6 | M44: 6 | O44: 6 | Q44: 6 | AC44: 42 | AE44: 63000
B45: Recursos Naturais | C45: Mestrado Acadêmico | D45: Dourados | E45: 14 | G45: 13 | I45: 14 | K45: 14 | M45: 14 | O45: 14 | Q45: 14 | AC45: 97 | AE45: 145500
B46: Zootecnia: Produção Animal no Cerrado Pantanal | C46: Mestrado Acadêmico | D46: Aquidauana | E46: 6 | G46: 3 | I46: 3 | K46: 5 | M46: 5 | O46: 5 | Q46: 5 | AC46: 32 | AE46: 48000
B47: Total mensal Mestrado | E47: =SUM(E40:E46) -> 54 | G47: =SUM(G40:G46) -> 48 | I47: =SUM(I40:I46) -> 51 | K47: =SUM(K40:K46) -> 56 | M47: =SUM(M40:M46) -> 56 | O47: =SUM(O40:O46) -> 55 | Q47: 55 | AC47: =SUM(AC40:AC46) -> 375 | AE47: 562500
B48: Agronomia: Produção Vegetal | C48: Doutorado Acadêmico | D48: Aquidauana | E48: 8 | G48: 8 | I48: 12 | K48: 12 | M48: 12 | O48: 12 | Q48: 12 | AC48: =SUM(E48+G48+I48+K48+M48+O48+Q48+S48*U48+W48+Y48+AA48) -> 76 | AE48: =AC48*2200 -> 167200
B49: Recursos Naturais | C49: Doutorado Acadêmico | D49: Dourados | E49: 13 | G49: 13 | I49: 18 | K49: 18 | M49: 18 | O49: 18 | Q49: 18 | AC49: =SUM(E49+G49+I49+K49+M49+O49+Q49+S49*U49+W49+Y49+AA49) -> 116 | AE49: =AC49*2200 -> 255200
B50: Total mensal Doutorado | E50: =SUM(E48:E49) -> 21 | G50: =SUM(G48:G49) -> 21 | I50: =SUM(I48:I49) -> 30 | K50: =SUM(K48:K49) -> 30 | M50: =SUM(M48:M49) -> 30 | O50: =SUM(O48:O49) -> 30 | Q50: 30 | AC50: =AC48+AC49 -> 192 | AE50: =AE48+AE49 -> 422400
B51: Total mensal (Mestrado e Doutorado) | E51: =SUM(E47,E50) -> 75 | G51: =SUM(G47,G50) -> 69 | I51: =SUM(I47,I50) -> 81 | K51: =SUM(K47,K50) -> 86 | M51: =SUM(M47,M50) -> 86 | O51: =SUM(O47,O50) -> 85 | Q51: =SUM(Q47,Q50) -> 85 | AC51: =AC47+AC50 -> 567 | AE51: =AE47+AE50 -> 984900
B52: Fonte: Financeiro PROPPI julho/2022
B55: OBS: O valor da bolsa PIBAP corresponde a 50% do valor da bolsa CAPES, sendo permitido que o aluno receba até 2 PIBAP.

Sheet Bolsas_CNPq_Fundect
B11: Objetivo: Apresentar a quantidade de bolsas CNPq e FUNDECT referentes a programas de Pós-Graduação stricto sensu
B13: Quadro - Quantidade de bolsas CNPq e Fundect nos Programas de Pós-graduação Stricto Sensu - por Curso/Ano
B14: Curso | C14: Nível | D14: Unidade Universitária | E14: 2020 | G14: 2021 | I14: 2022*
E15: CNPq | F15: FUNDECT | G15: CNPq | H15: FUNDECT | I15: CNPq | J15: FUNDECT
B16: Agronomia: Produção Vegetal | C16: Mestrado Acadêmico | D16: Aquidauana | E16: - | F16: 1 | G16: - | H16: 1 | I16: 2 | J16: 1
B17: Agronomia: Sustentabilidade na Agricultura | C17: Mestrado Acadêmico | D17: Cassilândia | E17: - | F17: 1 | G17: - | H17: 1 | I17: - | J17: 1
B18: Desenvolvimento Regional e de Sistemas Produtivos | C18: Mestrado Acadêmico | D18: Ponta Porã | E18: - | F18: 1 | G18: - | H18: 1 | I18: - | J18: 1
B19: Educação: Educação, Linguagem e Sociedade | C19: Mestrado Acadêmico | D19: Paranaíba | E19: - | F19: - | G19: - | H19: 1 | I19: - | J19: 1
B20: Zootecnia: Produção Animal no Cerrado Pantanal | C20: Mestrado Acadêmico | D20: Aquidauana | E20: - | F20: 1 | G20: - | H20: 1 | I20: - | J20: -
B21: Letras: Língua e Literatura | C21: Mestrado Acadêmico | D21: Campo Grande | E21: - | F21: 1 | G21: - | H21: 1 | I21: - | J21: 1
B22: Recursos Naturais | C22: Mestrado Acadêmico | D22: Dourados | E22: 3 | F22: - | G22: 3 | H22: - | I22: 2 | J22: 2
B23: Total Mestrado | E23: 3 | F23: 5 | G23: 3 | H23: 6 | I23: =SUM(I16,I22) -> 4 | J23: =SUM(J16:J22) -> 7
B24: Agronomia: Produção Vegetal | C24: Doutorado Acadêmico | D24: Aquidauana | E24: - | F24: 1 | G24: - | H24: 1 | I24: - | J24: 1
B25: Recursos Naturais | C25: Doutorado Acadêmico | D25: Dourados | E25: - | F25: 2 | G25: - | H25: 2 | I25: - | J25: -
B26: Total Doutorado | E26: - | F26: 3 | G26: - | H26: 3 | I26: - | J26: 1
B27: Total geral (mestrado e doutorado) | E27: 3 | F27: 8 | G27: 3 | H27: 9 | I27: =I23 -> 4 | J27: =SUM(J23,J26) -> 8
B28: Fonte: Programas de Pós-graduação, julho 2022
B30: *Dados referem-se ao 1º semestre

Sheet Convenio_FAPEMS
B11: Objetivo: Indicar o montante de recursos arrecadados e os executados dos programas de pós-graduação referente ao Convênio FAPEMS
B13: Quadro - Valor monetário referente ao recurso arrecadado com inscrições no processo seletivo e ao efetivamente executado do Convênio FAPEMS - por Programa de Pós-graduação
B14: Programa | C14: Nível | D14: Unidade Universitária | E14: 2015-2016 | H14: 2017 | K14: 2018 | N14: 2019 | Q14: 2020
E15: Valor arrecadado | F15: Valor executado | G15: % Total executado* | H15: Valor arrecadado | I15: Valor executado | J15: % Total executado* | K15: Valor arrecadado | L15: Valor executado | M15: % Total executado* | N15: Valor arrecadado | O15: Valor executado | P15: % Total executado* | Q15: Valor arrecadado | R15: Valor executado | S15: % Total executado*
B16: Agronomia: Produção Vegetal | C16: Mestrado/Doutorado Acadêmico | D16: Aquidauana | E16: 11100 | F16: 5770.04 | G16: 0.5198234234 | H16: 5600 | I16: 4373.85 | J16: 0.6074185629 | K16: 5800 | L16: 7106.27 | M16: 0.7666737778 | N16: 1700 | O16: 3487.75 | P16: 0.8569384298 | Q16: 0 | R16: 379.21 | S16: 0.8726082645
B17: Agronomia: Sustentabilidade na Agricultura | C17: Mestrado Acadêmico | D17: Cassilândia | E17: 3510 | F17: 1959.73 | G17: 0.5583276353 | H17: 1940 | I17: 1582.54 | J17: 0.6499577982 | K17: 1400 | L17: 1428.62 | M17: 0.7256773723 | N17: 1650 | O17: 3119.42 | P17: 0.9518011765 | Q17: 0 | R17: 0 | S17: 0.9518011765
B18: Desenvolvimento Regional e de Sistemas Produtivos | C18: Mestrado Acadêmico | D18: Ponta Porã | E18: 9660 | F18: 9447.29 | G18: 0.9779803313 | H18: 4950 | I18: 4443.82 | J18: 0.9507946612 | K18: 5844 | L18: 6407.53 | M18: 0.9924044197 | N18: 7800 | O18: 5936.63 | P18: 0.9285506477 | Q18: 0 | R18: 607.51 | S18: 0.950052382
B19: Educação: Educação, Linguagem e Sociedade | C19: Mestrado Acadêmico | D19: Paranaíba | E19: 39600 | F19: 29278.24 | G19: 0.7393494949 | H19: 22996.88 | I19: 18507.7 | J19: 0.7633917218 | K19: 22700 | L19: 20679.79 | M19: 0.8026756664 | N19: 23190 | O19: 27940.4 | P19: 0.8886432166 | Q19: 6100 | R19: 1615.61 | S19: 0.8554359801
B20: Letras: Língua e Literatura | C20: Mestrado Acadêmico | D20: Campo Grande | E20: 43700 | F20: 33154.63 | G20: 0.7586871854 | H20: 27600 | I20: 26142.39 | J20: 0.8316552595 | K20: 20490 | L20: 25471.36 | M20: 0.9235034317 | N20: 16670 | O20: 23562.29 | P20: 0.9988075788 | Q20: 0 | R20: 1147.25 | S20: 1.009385211
B21: Recursos Naturais | C21: Mestrado/Doutorado Acadêmico | D21: Dourados | E21: 19100 | F21: 11014.07 | G21: 0.5766528796 | H21: 8690.48 | I21: 12509.82 | J21: 0.8464729648 | K21: 5200 | L21: 5387.73 | M21: 0.8763625143 | N21: 5577 | O21: 3506.9 | P21: 0.8405661972 | Q21: 0 | R21: 1049.45 | S21: 0.8677769458
B22: Zootecnia: Produção Animal no Cerrado Pantanal | C22: Mestrado Acadêmico | D22: Aquidauana | E22: 6275 | F22: 3111.6 | G22: 0.49587251 | H22: 2600 | I22: 4306.4 | J22: 0.8358309859 | K22: 2900 | L22: 2648.98 | M22: 0.8549452229 | N22: 840 | O22: 2406.97 | P22: 0.9888188664 | Q22: 0 | R22: 0 | S22: 0.9888188664
B23: Educação | C23: Mestrado Profissional | D23: Campo Grande | E23: 35300 | F23: 26630.14 | G23: 0.7543949008 | H23: 23125.9 | I23: 11536.71 | J23: 0.6532522392 | K23: 21000 | L23: 24873.5 | M23: 0.7937001658 | N23: 5400 | O23: 8988.61 | P23: 0.8491387654 | Q23: 5800 | R23: 6046.32 | S23: 0.8615117753
B24: Educação Científica e Matemática | C24: Mestrado Profissional | D24: Dourados | E24: 4320 | F24: 2254.38 | G24: 0.5218472222 | H24: 4670 | I24: 4846.67 | J24: 0.7898832036 | K24: 10390 | L24: 7761.21 | M24: 0.7668864809 | N24: 5600 | O24: 4751.33 | P24: 0.7851717374 | Q24: 0 | R24: 200 | S24: 0.7931781425
B25: Ensino em Saúde | C25: Mestrado Profissional | D25: Dourados | E25: 31010 | F25: 19262.6 | G25: 0.6211738149 | H25: 21400 | I25: 19316.13 | J25: 0.7360948292 | K25: 12000 | L25: 16803.75 | M25: 0.8598428815 | N25: 1400 | O25: 780.89 | P25: 0.8534169579 | Q25: 0 | R25: 0 | S25: 0.8534169579
B26: História | C26: Mestrado Profissional em Rede | D26: Amambai | E26: 0 | F26: 0 | G26: 0 | H26: 0 | I26: 0 | J26: 0 | K26: 0 | L26: 0 | M26: 0 | N26: 1900 | O26: 1091.32 | P26: 0.5743789474 | Q26: 1500 | R26: 742.99 | S26: 0.5395029412
B27: Total geral acumulado | E27: 203575 | F27: 141882.72 | G27: 0.6969555201 | H27: 123573.26 | I27: 107566.03 | J27: 0.7624945033 | K27: 107724 | L27: 118568.74 | M27: 0.8462657287 | N27: 71727 | O27: 85572.51 | P27: 0.8953625396 | Q27: 13400 | R27: 11788.34 | S27: 0.8949596198
B28: *Refere-se ao total acumulado de cada programa de pós-graduação, de 2015 até 2020
B32: Quadro - Valor monetário referente ao recurso arrecadado e ao efetivamente executado do Convênio FAPEMS - por Curso de Especialização
B33: Especializações | C33: Unidade Universitária | D33: 2015/2016 | G33: 2017 | J33: 2018 | M33: 2019 | P33: 2020
D34: Valor arrecadado | E34: Valor executado | F34: % Total executado* | G34: Valor arrecadado | H34: Valor executado | I34: % Total executado* | J34: Valor arrecadado | K34: Valor executado | L34: % Total executado* | M34: Valor arrecadado | N34: Valor executado | O34: % Total executado* | P34: Valor arrecadado | Q34: Valor executado | R34: % Total executado*
B35: Direitos Difusos e Coletivos | C35: Dourados | D35: 8250 | E35: 1782.26 | F35: 0.2160315152 | G35: - | H35: 2772.61 | I35: 0.5521054545 | J35: - | K35: - | L35: 0.5521054545 | M35: 3900 | N35: 894.14 | O35: 0.6604860606 | P35: - | Q35: 125.35 | R35: 0.4587950617
B36: Letras | C36: Dourados | D36: 2200 | E36: 721.17 | F36: 0.3278045455 | G36: - | H36: 4.2 | I36: 0.3297136364 | J36: 2200 | K36: 2204.16 | L36: 0.6658022727 | M36: - | N36: - | O36: 0.6658022727 | P36: - | Q36: - | R36: 0.6658022727
B37: Língua e Cultura Terena | C37: Campo Grande | D37: 3500 | E37: 1313.5 | F37: 0.3752857143 | G37: - | H37: 2186.42 | I37: 0.9999771429 | J37: - | K37: - | L37: - | M37: - | N37: - | O37: - | P37: - | Q37: - | R37: 0.9999771429
B38: Linguagem, Questões Ético Raciais e de Gênero | C38: Campo Grande | D38: 700 | E38: 235.2 | F38: 0.336 | G38: - | H38: 70 | I38: 0.436 | J38: - | K38: - | L38: 0.436 | M38: - | N38: - | O38: 0.436 | P38: - | Q38: - | R38: 0.436
B39: Sociedade, Cultura E Ambiente | C39: Amambai | D39: 160 | E39: 35.22 | F39: 0.220125 | G39: 720 | H39: 141.5 | I39: 1.1045 | J39: - | K39: 32 | L39: 0.2371818182 | M39: - | N39: - | O39: 0.2371818182 | P39: - | Q39: - | R39: 0.2371818182
B40: Turismo | C40: Dourados | D40: 1900 | E40: 426.97 | F40: 0.2247210526 | G40: - | H40: - | I40: 0.2247210526 | J40: - | K40: 412.89 | L40: 0.4420315789 | M40: - | N40: - | O40: 0.4420315789 | P40: - | Q40: - | R40: 0.4420315789
B41: Envelhecimento Humano | C41: Dourados | D41: 4290 | E41: - | F41: 0 | G41: - | H41: 1559.07 | I41: 0.3634195804 | J41: - | K41: - | L41: 0.3634195804 | M41: - | N41: - | O41: 0.3634195804 | P41: - | Q41: - | R41: 0.3634195804
B42: Direitos Humanos | C42: Paranaíba | D42: 1950 | E42: - | F42: 0 | G42: - | H42: 620.1 | I42: 0.318 | J42: - | K42: - | L42: 0.318 | M42: - | N42: - | O42: 0.318 | P42: - | Q42: - | R42: 0.318
B43: Estudos Aplicados de Linguagem | C43: Jardim | D43: - | E43: - | F43: - | G43: 2500 | H43: 397.5 | I43: 0.159 | J43: - | K43: 250 | L43: 0.259 | M43: - | N43: - | O43: 0.259 | P43: - | Q43: - | R43: 0.259
B44: Educação | C44: Paranaíba | D44: - | E44: - | F44: - | G44: 1750 | H44: 1575 | I44: 0.9 | J44: - | K44: 175 | L44: 1 | M44: - | N44: - | O44: - | P44: - | Q44: - | R44: 1
B45: Políticas Públicas, Cultura e Sociedade | C45: Paranaíba | D45: - | E45: - | F45: - | G45: - | H45: - | I45: - | J45: - | K45: - | L45: - | M45: 2760 | N45: 683.7 | O45: 0.2477173913 | P45: - | Q45: - | R45: 0.2477173913
B46: Coordenação Pedagógica | C46: Dourados | D46: - | E46: - | F46: - | G46: - | H46: - | I46: - | J46: - | K46: - | L46: - | M46: - | N46: - | O46: - | P46: 9600 | Q46: 9133.55 | R46: 0.9514114583
B47: Direito e Vulnerabilidade | C47: Naviraí | D47: - | E47: - | F47: - | G47: - | H47: - | I47: - | J47: - | K47: - | L47: - | M47: 5400 | N47: 1259.65 | P47: - | Q47: 1293.51 | R47: 0.4728074074
B48: Total geral acumulado | D48: 22950 | E48: 4514.32 | F48: 0.1967023965 | G48: 4970 | H48: 9326.4 | I48: 0.4957277937 | J48: 2200 | K48: 2200 | L48: 0.532560425 | M48: 9300 | N48: 2837.49 | O48: 0.4788992897 | P48: 9600 | Q48: 10552.41 | R48: 0.600379845
B49: *Refere-se ao total acumulado de cada programa de pós-graduação, de 2015 até 2020
B51: Fonte: Financeiro PROPPI, janeiro 2021
B53: Convênio encerrado em 2020, transferido para Convênio FUNAEPE

Sheet Convenio FUNAEPE
B11: Objetivo: Indicar o montante de recursos arrecadados e os executados dos programas de pós-graduação referente ao Convênio FUNAEPE
B13: Quadro - Valor monetário referente ao recurso arrecadado com inscrições no processo seletivo e ao efetivamente executado do Convênio Funaepe - por Programa de Pós-graduação
B14: Programa | C14: Nível | D14: Unidade Universitária | E14: 2020 | G14: 2021 | I14: 2022 | K14: Total geral Executado (%)
E15: Valor arrecadado* | F15: Valor executado no ano** | G15: Valor arrecadado no ano | H15: Valor executado no ano** | I15: Valor arrecadado no ano | J15: Valor executado no ano**
B16: Agronomia: Produção Vegetal | C16: Mestrado/Doutorado Acadêmico | D16: Aquidauana | E16: 3631.38 | F16: 2300 | G16: 7371.48 | H16: 3635.94 | I16: 542.95 | J16: 2640.93 | K16: =SUM(J16,H16,F16)/SUM(I16,G16,E16) -> 0.7428556333
B17: Agronomia: Sustentabilidade na Agricultura | C17: Mestrado Acadêmico | D17: Cassilândia | E17: 3576.11 | F17: 637.77 | G17: 4314.49 | H17: 673.61 | I17: 892.95 | J17: 105.63 | K17: =SUM(J17,H17,F17)/SUM(I17,G17,E17) -> 0.1613254322
B18: Desenvolvimento Regional e de Sistemas Produtivos | C18: Mestrado Acadêmico | D18: Ponta Porã | E18: 1652.94 | F18: 240.59 | G18: 5391.32 | H18: 1445.12 | I18: 6351.75 | J18: 1189.63 | K18: 0.2146415239
B19: Educação: Educação, Linguagem e Sociedade | C19: Mestrado Acadêmico | D19: Paranaíba | E19: 14811.73 | F19: 2082.82 | G19: 32950.01 | H19: 11649.29 | I19: 7942.95 | J19: 3122.33 | K19: 0.3025677012
B20: Letras: Língua e Literatura | C20: Mestrado Acadêmico | D20: Campo Grande | E20: 535.65 | F20: 84.16 | G20: 18473.93 | H20: 2329.23 | I20: 3860.55 | J20: 11339.39 | K20: 0.6013424497
B21: Recursos Naturais | C21: Mestrado/Doutorado Acadêmico | D21: Dourados | E21: 9501.23 | F21: 1675.1 | G21: 16439.61 | H21: 3110.83 | I21: 360.55 | J21: 1909.43 | K21: 0.2545629718
B22: Zootecnia: Produção Animal no Cerrado Pantanal | C22: Mestrado Acadêmico | D22: Aquidauana | E22: 1078.02 | F22: 196.4 | G22: 2516.4 | H22: 457.68 | I22: 1542.95 | J22: 211.93 | K22: 0.1685706889
B23: Educação | C23: Mestrado Profissional | D23: Campo Grande | E23: 33194.98 | F23: 6920.15 | G23: 53643.68 | H23: 21040.58 | I23: 3960.55 | J23: 7318.8 | K23: 0.3885444598
B24: Educação Científica e Matemática | C24: Mestrado Profissional | D24: Dourados | E24: 5996 | F24: 948.62 | G24: 11634.38 | H24: 2182.44 | I24: 1142.95 | J24: 1498.43 | K24: 0.246599298
B25: Ensino em Saúde | C25: Mestrado Profissional | D25: Dourados | E25: 15141.91 | F25: 4165.45 | G25: 20795.29 | H25: 6342.31 | I25: 2142.95 | J25: 179.83 | K25: 0.2806603966
B26: História | C26: Mestrado Profissional em Rede | D26: Amambai | E26: 1529.41 | F26: 223.3 | G26: 4067.79 | H26: 573.12 | I26: 1157.05 | J26: 1351.96 | K26: 0.318078247
B27: Letras | C27: Mestrado Profissional em Rede | D27: Dourados | E27: - | F27: - | G27: 633.59 | H27: 131.41 | I27: - | J27: - | K27: 0.2074054199
B28: Total geral | E28: 90649.36 | F28: 19474.36 | G28: 178231.97 | H28: 53571.56 | I28: =SUM(I16:I26) -> 29898.15 | J28: =SUM(J16:J26) -> 30868.29 | K28: =SUM(J28,H28,F28)/SUM(I28,G28,E28) -> 0.3477956719
B29: *valor arrecado em processos seletivos de 2019 e anos anteriores, pois encerrou-se o Convênio da Fapems e migrou-se o saldo para FUNAEPE
B30: **Considerando-se o saldo acumulado
B31: Fonte: Financeiro PROPPI julho/2022
B33: Quadro - Valor monetário referente ao recurso arrecadado e ao efetivamente executado do Convênio FAPEMS - por Curso de Especialização
B34: Especializações | C34: Unidade Universitária | D34: 2020 | F34: 2021 | H34: 2022 | J34: Total geral Executado (%)
D35: Valor arrecadado* | E35: Valor executado no ano** | F35: Valor arrecadado no ano | G35: Valor executado no ano** | H35: Valor arrecadado no ano | I35: Valor executado no ano**
B36: Direitos Difusos e Coletivos | C36: Dourados | D36: 6577.36 | E36: 930.01 | F36: 10765.74 | G36: 1815.04 | H36: - | I36: - | J36: =SUM(G36,E36)/SUM(F36,D36) -> 0.1582790851
B37: Letras | C37: Dourados | D37: 2.79 | E37: 9.57 | F37: 27.49 | G37: 2.83 | H37: - | I37: - | J37: =SUM(G37,E37)/SUM(F37,D37) -> 0.4095112285
B38: Língua e Cultura Terena | C38: Campo Grande | D38: 1.8 | E38: 9.43 | F38: 27.49 | G38: 2.83 | H38: - | I38: - | J38: =SUM(G38,E38)/SUM(F38,D38) -> 0.4185728918
B39: Linguagem, Questões Ético Raciais e de Gênero | C39: Campo Grande | D39: 396.56 | E39: 64.69 | F39: 534.9 | G39: 83.02 | H39: - | I39: - | J39: 0.158579005
B40: Sociedade, Cultura e Ambiente | C40: Amambai | D40: 649.4 | E40: 100.1 | F40: 787.78 | G40: 118.43 | H40: - | I40: - | J40: 0.1520547183
B41: Turismo | C41: Dourados | D41: 1755.24 | E41: 254.91 | F41: 1893.62 | G41: 273.24 | H41: - | I41: - | J41: 0.1447438378
B42: Envelhecimento Humano | C42: Dourados | D42: 2732.65 | E42: 391.75 | F42: 2871.03 | G42: 410.08 | H42: - | I42: - | J42: 0.1430898981
B43: Direitos Humanos | C43: Paranaíba | D43: 2210.41 | E43: 318.64 | F43: 27.49 | G43: 2.83 | H43: - | I43: - | J43: 0.1436480629
B44: Estudos Aplicados de Linguagem | C44: Jardim | D44: - | E44: - | F44: - | G44: - | H44: - | I44: - | J44: -
B45: Educação | C45: Paranaíba | D45: - | E45: - | F45: - | G45: - | H45: - | I45: - | J45: -
B46: Políticas Públicas, Cultura e Sociedade | C46: Paranaíba | D46: 2078.02 | E46: 300.1 | F46: 3116.4 | G46: 889.78 | H46: - | I46: - | J46: =SUM(G46,E46)/SUM(F46,D46) -> 0.2290688855
B47: Coordenação Pedagógica | C47: Dourados | D47: 468.17 | E47: 74.72 | F47: 606.55 | G47: 93.05 | H47: - | I47: - | J47: =SUM(G47,E47)/SUM(F47,D47) -> 0.1561057764
B48: Direito e Vulnerabilidade | C48: Naviraí | D48: 2848.56 | E48: 407.98 | F48: 2986.94 | G48: 426.31 | H48: - | I48: - | J48: 0.1429680404
B49: Residência Multiprofissional em Saúde da Família | C49: Campo Grande | D49: - | E49: - | F49: - | G49: - | H49: 9114.24 | I49: 1903.43 | J49: =I49/H49 -> 0.2088413296
B50: Total geral | D50: 19720.96 | E50: 2861.9 | F50: 23645.43 | G50: 4117.44 | H50: =H49 -> 9114.24 | I50: =I49 -> 1903.43 | J50: =SUM(I50,G50,E50)/SUM(H50,F50,D50) -> 0.1692580672
B51: *valor arrecado em processos seletivos de 2019 e anos anteriores, pois encerrou-se o Convênio da Fapems e migrou-se o saldo para FUNAEPE
B53: Dados referem-se ao 1º semestre de 2022
B55: Fonte: Financeiro PROPPI julho/2022

Sheet Convenio_Proap_CAPES
B11: Objetivo: Indicar o montante de recursos solicitados e os executados em programas de pós-graduação referente ao Convênio PROAP/CAPES
B13: Quadro - Valor monetário referente ao recurso solicitado e o efetivamente executado referente ao Convênio PROAP/CAPES - por Curso
B14: Programa | C14: Nível | D14: Unidade Universitária | E14: 2015-2016 | G14: 2017 | I14: 2018 | K14: 2019 | M14: 2020 | O14: 2021 | Q14: 2022 | S14: Total geral Executado (%)
E15: Valor aprovado no ano | F15: Valor executado no ano* | G15: Valor aprovado no ano | H15: Valor executado no ano* | I15: Valor aprovado no ano | J15: Valor executado no ano* | K15: Valor aprovado no ano | L15: Valor executado no ano* | M15: Valor aprovado no ano | N15: Valor executado no ano* | O15: Valor aprovado no ano | P15: Valor executado no ano* | Q15: Valor aprovado no ano | R15: Valor executado no ano*
B16: Agronomia: Produção Vegetal | C16: Mestrado/Doutorado Acadêmico | D16: Aquidauana | E16: 76000 | F16: 34809.16 | G16: 23467.5 | H16: 10556.09 | I16: 29260.54 | J16: 2566.5 | K16: 33192.35 | L16: 8142 | M16: 31092.36 | N16: 1593 | O16: - | P16: 14779 | Q16: - | R16: 6814.5 | S16: =SUM(R16,P16,N16,L16,J16,H16,F16)/SUM(E16,G16,I16,K16,M16) -> 0.4106477422
B17: Agronomia: Sustentabilidade na Agricultura | C17: Mestrado Acadêmico | D17: Cassilândia | E17: 27000 | F17: 15791.77 | G17: 32722.17 | H17: 3634 | I17: 9866 | J17: 7109.66 | K17: 9866 | L17: 1844.64 | M17: 8939.7 | N17: 847.88 | O17: - | P17: 10362.16 | Q17: - | R17: 496.68 | S17: =SUM(R17,P17,N17,L17,J17,H17,F17)/SUM(E17,G17,I17,K17,M17) -> 0.4535019227
B18: Desenvolvimento Regional e de Sistemas Produtivos | C18: Mestrado Acadêmico | D18: Ponta Porã | E18: 25000 | F18: 7958.43 | G18: 17258 | H18: 1428.23 | I18: 7450 | J18: 2306 | K18: 8058.5 | L18: 2743.5 | M18: 6858.5 | N18: 652.12 | O18: - | P18: 794.5 | Q18: - | R18: 471.64 | S18: 0.2530664603
B19: Educação: Educação, Linguagem e Sociedade | C19: Mestrado Acadêmico | D19: Paranaíba | E19: 29000 | F19: 16378.91 | G19: 13300 | H19: 3191.3 | I19: 16099.5 | J19: 6897.56 | K19: 16099.5 | L19: 1144.6 | M19: 14899.5 | N19: 1186.8 | O19: - | P19: 921.3 | Q19: - | R19: - | S19: =SUM(P19,N19,L19,J19,H19,F19)/SUM(E19,G19,I19,K19,M19) -> 0.332449314
B20: Letras: Língua e Literatura | C20: Mestrado Acadêmico | D20: Campo Grande | E20: 25000 | F20: 10178.35 | G20: 20560 | H20: 6095.37 | I20: 21302.5 | J20: 6033.1 | K20: 22593.63 | L20: 11401.38 | M20: 27954.3 | N20: 2118.7 | O20: - | P20: - | Q20: - | R20: 797.1 | S20: =SUM(R20,N20,L20,J20,H20,F20)/SUM(E20,G20,I20,K20,M20) -> 0.3119314017
B21: Recursos Naturais | C21: Mestrado/Doutorado Acadêmico | D21: Dourados | E21: 75300 | F21: 46174.64 | G21: 9866 | H21: 8149.2 | I21: 36917.23 | J21: 9735 | K21: 36917.23 | L21: 2212.5 | M21: 34817.24 | N21: 6216.8 | O21: - | P21: 10502.6 | Q21: - | R21: 10620.11 | S21: =SUM(R21,P21,N21,L21,J21,H21,F21)/SUM(G21,E21,I21,K21,M21) -> 0.4829840102
B22: Zootecnia: Produção Animal no Cerrado Pantanal | C22: Mestrado Acadêmico | D22: Aquidauana | E22: 48000 | F22: 14008.11 | G22: 7450 | H22: 4340.5 | I22: 17258 | J22: 11962.74 | K22: 17258 | L22: 6195 | M22: 15708 | N22: 1900.4 | O22: - | P22: 22244.52 | Q22: - | R22: 1703.71 | S22: =SUM(R22,P22,N22,L22,J22,H22,F22)/SUM(G22,E22,I22,K22,M22) -> 0.5900692696
B23: Total geral | E23: 305300 | F23: 145299.37 | G23: 124623.67 | H23: 37394.69 | I23: 138153.77 | J23: 46610.56 | K23: 143985.21 | L23: 33683.62 | M23: 140269.6 | N23: 14515.7 | O23: - | P23: 59604.08 | Q23: - | R23: =SUM(R16:R22) -> 20903.74 | S23: =SUM(R23,P23,N23,L23,J23,H23,F23)/SUM(E23,G23,I23,K23,M23) -> 0.4200377963
B24: *Considerando-se o saldo acumulado
B27: Quadro - Valor monetário referente ao recurso solicitado e o efetivamente executado do Convênio PROAP/CAPES - por rubrica
B28: Rubricas | C28: 2015-2016 | E28: 2017 | G28: 2018 | I28: 2019 | K28: 2020 | M28: 2021 | O28: 2022 | Q28: Total geral Executado (%)
C29: Valor aprovado no ano | D29: Valor executado no ano* | E29: Valor aprovado no ano | F29: Valor executado no ano* | G29: Valor aprovado no ano | H29: Valor executado no ano* | I29: Valor aprovado no ano | J29: Valor executado no ano* | K29: Valor aprovado no ano | L29: Valor executado no ano* | M29: Valor aprovado no ano | N29: Valor executado no ano* | O29: Valor aprovado no ano | P29: Valor executado no ano*
B30: Aquisição de diversos materiais de expediente | C30: 5706 | D30: - | E30: - | F30: - | G30: - | H30: - | I30: - | J30: - | K30: - | L30: - | M30: - | N30: - | O30: - | P30: - | Q30: 0
B31: Aquisição de material de processamento de dados | C31: 1500 | D31: - | E31: - | F31: - | G31: - | H31: - | I31: - | J31: - | K31: - | L31: - | M31: - | N31: - | O31: - | P31: - | Q31: 0
B32: Aquisição de material elétrico e eletrônico | C32: 600 | D32: - | E32: - | F32: - | G32: - | H32: - | I32: - | J32: - | K32: - | L32: - | M32: - | N32: - | O32: - | P32: - | Q32: 0
B33: Aquisição de material laboratorial. | C33: 11070 | D33: - | E33: - | F33: - | G33: - | H33: - | I33: - | J33: - | K33: - | L33: - | M33: - | N33: - | O33: - | P33: - | Q33: 0
B34: Aquisição de material para produção ind | C34: 10000 | D34: - | E34: - | F34: - | G34: - | H34: - | I34: - | J34: - | K34: - | L34: - | M34: - | N34: - | O34: - | P34: - | Q34: 0
B35: Aquisição de material quimico | C35: 28593 | D35: - | E35: - | F35: - | G35: - | H35: - | I35: - | J35: - | K35: - | L35: - | M35: - | N35: - | O35: - | P35: - | Q35: 0
B36: Aquisição de outros materiais de consumo | C36: 1000 | D36: - | E36: - | F36: - | G36: - | H36: - | I36: - | J36: - | K36: - | L36: - | M36: - | N36: - | O36: - | P36: - | Q36: 0
B37: Aquisição de passagens no país | C37: 40630 | D37: 32085 | E37: 15460 | F37: 10116.8 | G37: 33981.79 | H37: 5909.26 | I37: 18472.35 | J37: 5840.58 | K37: 13223.7 | L37: - | M37: - | N37: - | O37: - | P37: 5354.49 | Q37: =SUM(P37,J37,H37,F37,D37)/SUM(C37,E37,G37,I37,K37) -> 0.4870426379
B38: Aquisição de sementes, mudas e insumos | C38: 4100 | D38: - | E38: - | F38: - | G38: - | H38: - | I38: - | J38: - | K38: _ | L38: - | M38: - | N38: - | O38: - | P38: - | Q38: 0
B39: Auxilio financeiro a estudantes | C39: 38013 | D39: 6846.41 | E39: 7962.26 | F39: 3798.6 | G39: 15103.01 | H39: 3954.34 | I39: 5198.6 | J39: - | K39: 8000 | L39: 1272 | M39: - | N39: - | O39: - | P39: 550.01 | Q39: =SUM(P39,L39,H39,F39,D39)/SUM(C39,E39,G39,I39,K39) -> 0.2210830909
B40: Combustíveis e lubrificantes automotivos | C40: 10200 | D40: - | E40: - | F40: 10189.92 | G40: - | H40: - | I40: - | J40: - | K40: - | L40: - | M40: - | N40: - | O40: - | P40: - | Q40: =F40/C40 -> 0.9990117647
B41: Contração de empresa para prestação de serviços gráficos | C41: 5581.76 | D41: 4999.72 | E41: - | F41: - | G41: - | H41: - | I41: - | J41: - | K41: - | L41: - | M41: - | N41: - | O41: - | P41: - | Q41: =D41/C41 -> 0.895724646
B42: Pagamento de auxílio a pesquisador | C42: 25115 | D42: 14203.46 | E42: 17997.52 | F42: 4108.55 | G42: 12082.41 | H42: 9034.66 | I42: 14622.23 | J42: 1844.64 | K42: 24935.84 | L42: 2155.8 | M42: - | N42: 16799.48 | O42: - | P42: 2865.53 | Q42: =SUM(P42,N42,L42,J42,H42,F42,D42)/SUM(C42,E42,G42,I42,K42) -> 0.5383694448
B43: Pagamento de diária no estado | C43: 57559 | D43: 35577 | E43: 15848.08 | F43: 32925.7 | G43: 30961.18 | H43: 11819.6 | I43: 67102 | J43: 14071.5 | K43: 65505.26 | L43: 10715 | M43: - | N43: 36904 | O43: - | P43: 11682 | Q43: =SUM(P43,N43,L43,J43,H43,F43,D43)/SUM(C43,E43,G43,I43,K43) -> 0.6485682572
B44: Pagamento de diárias a colaboradores eventuais | C44: 42144 | D44: 21241.9 | E44: 7449.03 | F44: - | G44: 28695.73 | H44: 9370.4 | I44: 15277.13 | J44: 7671.8 | K44: 12925 | L44: 5304.1 | M44: - | O44: - | P44: - | Q44: =SUM(L44,J44,H44,D44)/SUM(C44,E44,G44,I44,K44) -> 0.4093138859
B45: Pagamento de diárias no país | C45: 23769 | D45: 10548.7 | E45: 12562.26 | F45: - | G45: 22654.52 | H45: 20302 | I45: 31741.42 | J45: 6985.18 | K45: 29706.76 | L45: 12829.6 | M45: - | N45: 5900.6 | O45: - | P45: 7736.7 | Q45: =SUM(P45,N45,L45,J45,H45,D45)/SUM(C45,E45,G45,I45,K45) -> 0.5339256469
B46: Pagamento de passagem para o exterior | C46: 7000 | D46: - | E46: 5000 | F46: - | G46: 7551.54 | H46: - | I46: 5000 | J46: - | K46: - | L46: - | M46: - | N46: - | O46: - | P46: - | Q46: 0
B47: Pagamento de serviços de manutenção | C47: 4885 | D47: 600 | E47: - | F47: - | G47: - | H47: - | I47: - | J47: - | K47: - | L47: - | M47: - | N47: - | O47: - | P47: - | Q47: =D47/C47 -> 0.1228249744
B48: Pagamento de taxa de inscrição | C48: 5150 | D48: - | E48: - | F48: - | G48: - | H48: - | I48: - | J48: - | K48: - | L48: - | M48: - | N48: - | O48: - | P48: - | Q48: 0
B49: Serviços de análise e pesquisa científica | C49: 9146 | D49: - | E49: - | F49: - | G49: - | H49: - | I49: - | J49: - | K49: - | L49: - | M49: - | N49: - | O49: - | P49: - | Q49: 0
B50: Total geral | C50: 331761.76 | D50: 126102.19 | E50: 82279.15 | F50: 61139.57 | G50: 151030.18 | H50: 60390.26 | I50: 157413.73 | J50: 36413.7 | K50: 154296.56 | L50: 32276.5 | M50: - | N50: 59604.08 | O50: - | P50: =SUM(P30:P49) -> 28188.73 | Q50: =SUM(P50,N50,L50,J50,H50,F50,D50)/SUM(C50,E50,G50,I50,K50) -> 0.4609074043
B51: *Considerando-se o saldo acumulado
B53: Dados referem-se ao 1º semestre de 2022
B55: Fonte: Financeiro PROPPI, julho 2022

Sheet ProfHistoria
B11: Objetivo: Indicar o montante de recursos aprovados e executados referente ao Convênio PROFHISTÓRIA
B14: Quadro - Valor monetário referente ao recurso aprovado e ao efetivamente executado do Convênio PROFHISTÓRIA
B15: Rubricas | C15: 2017 | E15: 2018 | F15: 2019 | G15: 2020 | H15: 2021 | I15: 2022 | J15: Total geral Executado (%)
C16: Valor aprovado | D16: Valor executado no ano* | E16: Valor executado no ano* | F16: Valor executado no ano* | G16: Valor executado no ano* | H16: Valor executado no ano* | I16: Valor executado no ano*
B17: Material de expediente | C17: 3000 | D17: - | E17: - | F17: - | G17: - | H17: - | I17: - | J17: 0
B18: Impressão de Material didático | C18: 5850 | D18: - | E18: - | F18: - | G18: - | H18: - | I18: - | J18: 0
B19: Reprografia | C19: 168 | D19: - | E19: - | F19: - | G19: - | H19: - | I19: - | J19: 0
B20: Serviço de Postagem | C20: 550 | D20: - | E20: - | F20: - | G20: - | H20: - | I20: - | J20: 0
B21: Aluguel de Veículos | C21: 4500 | D21: - | E21: - | F21: - | G21: - | H21: - | I21: - | J21: 0
B22: Diárias para Discentes | C22: 2240 | D22: - | E22: - | F22: - | G22: - | H22: - | I22: - | J22: 0
B23: Passagens para Discentes | C23: 6000 | D23: - | E23: - | F23: - | G23: - | H23: - | I23: - | J23: 0
B24: Diárias para Palestrantes | C24: 1344 | D24: - | E24: 885 | F24: - | G24: - | H24: - | I24: - | J24: =SUM(D24:I24)/C24 -> 0.6584821429
B25: Passagens para palestrantes evento local do Profhistória | C25: 6000 | D25: - | E25: 1341.64 | F25: - | G25: - | H25: - | I25: - | J25: =SUM(D25:I25)/C25 -> 0.2236066667
B26: Diárias para o encontro anual do Profhistória | C26: 3360 | D26: - | E26: - | F26: - | G26: 3895.8 | H26: - | I26: 655.5 | J26: 1.354553571
B27: Passagens para o encontro anual do Profhistória | C27: 18000 | D27: - | E27: 1329.41 | F27: - | G27: - | H27: - | I27: 1681.4 | J27: 0.1672672222
B28: Diária Membro Externo BANCA | C28: 6048 | D28: - | E28: 1639.5 | F28: 354 | G28: 354 | H28: - | I28: - | J28: 0.3881448413
B29: Ressarcimento de Combustível para membro externo | C29: 3200 | D29: - | E29: - | F29: - | G29: - | H29: - | I29: - | J29: 0
B30: Passagens professor externo participação em Banca | C30: 31500 | D30: - | E30: 1433.84 | F30: - | G30: - | H30: - | I30: - | J30: 0.04551873016
B31: Diárias para coordenador representante encontros anuais e regionais | C31: 2240 | D31: - | E31: - | F31: 879.7 | G31: 1263.2 | H31: - | I31: 655.5 | J31: 1.249285714
B32: Passagens coordenador ou representante encontros anuais ou regionais | C32: 6000 | D32: - | E32: - | F32: 1770.18 | G32: - | H32: - | I32: 1681.4 | J32: 0.5752633333
B33: Total geral | C33: 100000 | D33: 0 | E33: 6629.39 | F33: 3003.88 | G33: 5513 | H33: - | I33: =SUM(I17:I32) -> 4673.8 | J33: =SUM(I33,G33,F33,E33)/C33 -> 0.1982007
B34: *Considerando-se o saldo acumulado
B36: Dados referem-se ao 1º semestre de 2022
B38: Fonte: Financeiro PROPPI julho 2022

Sheet ProfLetras CG
B11: Objetivo: Indicar o montante de recursos aprovados e executados dos programas de pós-graduação referente ao Convênio PROFLETRAS Campo Grande
B14: Quadro - Valor monetário referente ao recurso aprovado e ao efetivamente executado do Convênio PROFLETRAS Campo Grande
B15: Rubricas | C15: 2015-2016 | E15: 2017 | F15: 2018 | G15: 2019 | H15: 2020 | I15: 2021 | J15: 2022 | K15: Total geral Executado (%)
C16: Valor aprovado | D16: Valor executado no ano* | E16: Valor executado no ano* | F16: Valor executado no ano* | G16: Valor executado no ano* | H16: Valor executado no ano* | I16: Valor executado no ano* | J16: Valor executado no ano*
B17: Material de expediente | C17: 6000 | D17: - | E17: - | F17: - | G17: - | H17: - | I17: - | K17: 0
B18: Reprografia | C18: 6000 | D18: - | E18: - | F18: - | G18: - | H18: - | I18: - | K18: 0
B19: Impressão de Material didático | C19: 15000 | D19: - | E19: - | F19: - | G19: - | H19: - | I19: - | K19: 0
B20: Reprodução de Mídia | C20: 150 | D20: - | E20: - | F20: - | G20: - | H20: - | I20: - | K20: 0
B21: Postagem | C21: 2000 | D21: - | E21: - | F21: - | G21: - | H21: - | I21: - | K21: 0
B22: Passagens aéreas p/ encontros regionais de coordenadores em evento Científico | C22: 3000 | D22: - | E22: - | F22: - | G22: - | H22: - | I22: - | K22: 0
B23: Passagens aéreas p/ encontro anual coordenadores/professores/discentes | C23: 13500 | D23: - | E23: 3695 | F23: 2089.45 | G23: 2399.64 | H23: - | I23: - | K23: 0.6062288889
B24: Passagens aéreas para membro externo | C24: 30000 | D24: - | E24: - | F24: 3191.91 | G24: 2000 | H24: - | I24: - | K24: 0.1730636667
B25: Adicional de embarque e desembarque encontro Regional | C25: 190 | D25: - | E25: - | F25: - | G25: - | H25: - | I25: - | K25: 0
B26: Adicional de embarque e desembarque encontro anual | C26: 855 | D26: - | E26: - | F26: - | G26: - | H26: - | I26: - | K26: 0
B27: Adicional de embarque e desembarque para membro externo | C27: 1900 | D27: - | E27: - | F27: - | G27: - | H27: - | I27: - | K27: 0
B28: Diárias para coordenadores encontro Regional | C28: 1121 | D28: - | E28: - | F28: 1004.3 | G28: - | H28: - | I28: - | K28: 0.895896521
B29: Diárias para encontro anual e/ou outros eventos científicos (coordenadores,docente,e discente) | C29: 5044.4 | D29: - | E29: 1676.8 | F29: 1847.3 | G29: 1328.1 | H29: - | I29: - | K29: 0.9618983427
B30: Diárias para membro Externo | C30: 11210 | D30: - | E30: - | F30: 990.8 | G30: 2030.2 | H30: - | I30: - | K30: 0.2694915254
B31: Outros serviços. Terc. Pessoa Jurídica (Edição e Editoração de e-books + aluguel de veículos) | C31: 2589.5 | D31: - | E31: - | F31: - | G31: - | H31: - | I31: - | K31: 0
B32: Total | C32: 98559.9 | D32: 0 | E32: 5371.8 | F32: 9123.76 | G32: 7757.94 | H32: 0 | I32: - | K32: 0.2257865521
B33: *Considerando-se o saldo acumulado
B35: Dados referem-se ao 1º semestre de 2022
B36: Fonte: Financeiro PROPPI julho 2022

Sheet ProfLetras Ddos
B11: Objetivo: Indicar o montante de recursos aprovados e executados referente ao Convênio PROFLETRAS Dourados
B14: Quadro - Valor monetário referente ao recurso aprovado e ao efetivamente executado do Convênio PROFLETRAS Dourados
B15: Rubricas | C15: 2016 | E15: 2017 | F15: 2018 | G15: 2019 | H15: 2020 | I15: 2021 | J15: 2022 | K15: Total geral Executado (%)
C16: Valor aprovado | D16: Valor executado no ano* | E16: Valor executado no ano* | F16: Valor executado no ano* | G16: Valor executado no ano* | H16: Valor executado no ano* | I16: Valor executado no ano* | J16: Valor executado no ano*
B17: Material de expediente | C17: 1200 | D17: - | E17: - | F17: - | G17: - | H17: - | I17: - | K17: 0
B18: Reprografia | C18: 2100.6 | D18: - | E18: - | F18: - | G18: - | H18: - | I18: - | K18: 0
B19: Impressão de Material didático | C19: 10200 | D19: - | E19: - | F19: - | G19: - | H19: - | I19: - | K19: 0
B20: Reprodução de Mídia | C20: 228 | D20: - | E20: - | F20: - | G20: - | H20: - | I20: - | K20: 0
B21: Postagem | C21: 500 | D21: - | E21: - | F21: - | G21: - | H21: - | I21: - | K21: 0
B22: Passagens aéreas p/ encontros regionais de coordenadores em evento Científico | C22: 9000 | D22: - | E22: - | F22: - | G22: 3764.72 | H22: - | I22: - | K22: 0.4183022222
B23: Passagens aéreas p/ encontro anual coordenadores/professores/discentes | C23: 13500 | D23: - | E23: - | F23: 1564.52 | G23: - | H23: - | I23: - | K23: 0.1158903704
B24: Passagens aéreas para membro externo | C24: 37500 | D24: - | E24: - | F24: - | G24: - | H24: - | I24: - | K24: 0
B25: Adicional de embarque e desembarque encontro Regional | C25: 570 | D25: - | E25: - | F25: - | G25: - | H25: - | I25: - | K25: 0
B26: Adicional de embarque e desembarque encontro anual | C26: 855 | D26: - | E26: - | F26: - | G26: - | H26: - | I26: - | K26: 0
B27: Adicional de embarque e desembarque para membro externo | C27: 2375 | D27: - | E27: - | F27: - | G27: - | H27: - | I27: - | K27: 0
B28: Diárias para coordenadores | C28: 2690.4 | D28: - | E28: - | F28: - | G28: 1050.8 | H28: - | I28: - | K28: 0.3905738924
B29: Diárias para encontro anual e/ou outros eventos científicos (coordenadores,docente,e discente) | C29: 8071.02 | D29: - | E29: - | F29: 2556.5 | G29: - | H29: - | I29: - | K29: 0.316750547
B30: Diárias para membro Externo | C30: 11210 | D30: - | E30: - | F30: 442.5 | G30: 265.5 | H30: - | I30: - | K30: 0.06315789474
B31: Aluguel de veículos | C31: - | D31: - | E31: - | F31: - | G31: - | H31: - | I31: - | K31: -
B32: Outros serviços. Terc. Pessoa Jurídica (Edição e Editoração de e-books | C32: - | D32: - | E32: - | F32: - | G32: - | H32: - | I32: - | K32: -
B33: Total geral | C33: 100000.02 | D33: 0 | E33: 0 | F33: 4563.52 | G33: 5081.02 | H33: 0 | I33: - | K33: 0.09644538071
B34: *Considerando-se o saldo acumulado
B36: Dados referem-se ao 1º semestre de 2022
B38: Fonte: Financeiro PROPPI julho 2022

Sheet ProfMat Ddos
B11: Objetivo: Indicar o montante de recursos aprovados e executados referente ao Convênio PROFMAT Dourados
B14: Quadro - Valor monetário referente ao recurso aprovado e ao efetivamente executado do Convênio PROFMAT Dourados
B15: Rubricas | C15: 2017 | E15: 2018 | F15: 2019 | G15: 2020 | H15: 2021 | I15: 2022 | J15: Total geral Executado (%)
C16: Valor aprovado | D16: Valor executado no ano* | E16: Valor executado no ano* | F16: Valor executado no ano* | G16: Valor executado no ano* | H16: Valor executado no ano* | I16: Valor executado no ano*
B17: Resma de Papel sulfite A4 com 500 folhas | C17: 600 | D17: - | E17: - | F17: - | G17: - | H17: - | I17: - | J17: 0
B18: Resma de Papel Almaço 400 folhas | C18: 600 | D18: - | E18: - | F18: - | G18: - | H18: - | I18: - | J18: 0
B19: Pincel Recarregável | C19: 205 | D19: - | E19: - | F19: - | G19: - | H19: - | I19: - | J19: 0
B20: Cartucho para pincel recarregável para quadro branco | C20: 445 | D20: - | E20: - | F20: - | G20: - | H20: - | I20: - | J20: 0
B21: Passagens aéreas nacionais p/ encontros, congressos e participação em bancas ( coordenadores, professores, discentes) | C21: 42000 | D21: - | E21: 7516.11 | F21: 2137.73 | G21: - | H21: - | I21: - | J21: 0.2298533333
B22: Passagens aéreas para eventos internacionais (coordenadores, docente e discente) | C22: 25000 | D22: - | E22: - | F22: - | G22: - | H22: - | I22: - | J22: 0
B23: Diárias para encontros, congressos, e participação em bancas do PROFMAT (coordenadores, docente e discente) | C23: 22400 | D23: 1068.5 | E23: 3541.8 | F23: 88.5 | G23: - | H23: - | I23: - | J23: 0.2097678571
B24: Diárias para encontros, congressos internacionais (coordenadores, docente e discente) | C24: 8750 | D24: - | E24: - | F24: - | G24: 1599.5 | H24: - | I24: - | J24: 0
B25: Total | C25: 100000 | D25: 1068.5 | E25: 11057.91 | F25: 2226.23 | G25: 1599.5 | H25: - | J25: 0.1595214
B26: *Considerando-se o saldo acumulado
B28: Dados referem-se ao 1º semestre de 2022
B29: Fonte: Financeiro PROPPI julho 2022
